{"text_format":"3","workbook":"xlsx","n_sheets":3,"sheets":["Data","Countries","Nationalties"],"read":"whole","date_system":"1900"}

{"sheet":"Data","index":0,"n_rows":1001,"n_cols":70,"rows_kept":1001}
["Row Reference\n(Do not change)","Reporting Entity\nBC Number","Individual\nGiven Names","Individual\nSurname","Individual\nAlias","Individual\nFormer Given Names","Individual\nFormer Surname","Individual\nBirth Date (Full)\n(dd/mmm/yyyy)","Individual\nBirth Year\n(Partial)","Individual\nBirth Month\n(Partial)","Individual\nBirth Place\n(Select)","Individual\nNationality\n(Select)","Individual\nGender\n(Select)","Individual\nOccupation","Legal Entity\nLE Name","Legal Entity\nLE Number","Legal Entity\nLE Jurisdiction\n(Select)","Legal Entity\nLE Incorp Date\n(dd/mmm/yyyy)","Legal Entity\nAddress Type\n(Select)","Address\nLine 1","Address\nLine 2","Address\nCity","Address\nState","Address\nZip Code","Address\nCountry\n(Select)","Member\nDate Entered as Member\n(dd/mmm/yyyy)","Member\nDate Ceased as Member\n(dd/mmm/yyyy)","Member\nShare Cert No.\n(leave blank if N/A)","Member\nShares Held","Member\nShare Class Held\n(leave blank if Ordinary)","Member\nSeries of Class of Shares, if applicable","Member\nVoting Rights","Mortgage/Charge\nName of Mortgagee or Chargee","Mortgage/Charge\nType\n(Select)","Mortgage/Charge\nDate Entered \n(dd/mmm/yyyy)","Mortgage/Charge\nDate Discharged \n(dd/mmm/yyyy)","Mortgage/Charge\nMortgagee or Chargee Statement\n(1000 chars max)","Nominee\nIs holder acting as nominee?","Nominator\nName of Nominee","Nominator\nDate Entered as Nominator\n(dd/mmm/yyyy)","Nominator\nDate Ceased as Nominator\n(dd/mmm/yyyy)","Joint Holding\nType of Joint Holding, if applicable\n(Select)","Joint Holding\nPrimary Holder\n(Select)","Ownership/Control\nShare Percentage\n(Enter Percentage)","Ownership/Control\nVoting Rights Percentage\n(Enter Percentage)","Ownership/Control\nPower to appoint/remove senior management","Ownership/Control\nPower to appoint/remove directors","Ownership/Control\nPower to appoint/remove partners","Ownership/Control\nControl through Debt Instruments","Ownership/Control\nPower to direct/veto investment decisions","Ownership/Control\nPower to direct/veto profit share","Ownership/Control\nPower to direct/veto capital returns of assets","Ownership/Control\nPower to direct amendments to constitutional docs","Ownership/Control\nActing as Senior Management Official","Ownership/Control\nOther Control\n(Specify)","Ownership/Control\nEffective Date\n(dd/mmm/yyyy)","Ownership/Control\nCessation Date\n(dd/mmm/yyyy)","Exempted Owner\nExempted Owner Type, if applicable\n(Select)","Exempted Owner\nListed Company\nRecognised Stock Exchange Name","Exempted Owner\nListed Company\nTicker Symbol","Exempted Owner\nListed Company\nExchange Jurisdiction\n(Select)","Exempted Owner\nListed Company\nExchange Regulator","Exempted Owner\nListed Company\nListing Date\n(dd/mmm/yyyy)","Exempted Owner\nBVI Fund\nBVI Fund Licence Number","Exempted Owner\nForeign Fund\nExemption Type\n(Select)","Exempted Owner\nForeign Fund\nSegregated Portfolio Company (SPC)","Exempted Owner\nForeign Fund\nDisclosure and Transparency Rules","Exempted Owner\nForeign Fund\nInternational Standards","Nominee Ref","Joint Holder Ref"]
[{"$f":"IF(TRIM(B2)=\"\",\"\",TRIM(CONCATENATE(B2,\": \",TRIM(D2&\" \"&C2),O2)))","v":""},{"$nulls":30},true,{"$nulls":5},false,{"$nulls":7},false,false,false,false,false,false,false,false,false,{"$nulls":11},false,null,null,{"$f":"IF(AL2,A2,\"\")","v":""},{"$f":"IF(OR(TRIM(AP2)=\"\", AP2=\"Not Joint Holding\"),\"\",A2)","v":""}]
[{"$f":"IF(TRIM(B3)=\"\",\"\",TRIM(CONCATENATE(B3,\": \",TRIM(D3&\" \"&C3),O3)))","v":""},{"$nulls":30},true,{"$nulls":5},false,{"$nulls":7},false,false,false,false,false,false,false,false,false,{"$nulls":11},false,null,null,{"$f":"IF(AL3,A3,\"\")","v":""},{"$f":"IF(OR(TRIM(AP3)=\"\", AP3=\"Not Joint Holding\"),\"\",A3)","v":""}]
["",{"$nulls":30},true,{"$nulls":5},false,{"$nulls":7},false,false,false,false,false,false,false,false,false,{"$nulls":11},false,null,null,"",""]
["",{"$nulls":30},true,{"$nulls":5},false,{"$nulls":7},false,false,false,false,false,false,false,false,false,{"$nulls":11},false,null,null,"",""]
["",{"$nulls":30},true,{"$nulls":5},false,{"$nulls":7},false,false,false,false,false,false,false,false,false,{"$nulls":11},false,null,null,"",""]
["",{"$nulls":30},true,{"$nulls":5},false,{"$nulls":7},false,false,false,false,false,false,false,false,false,{"$nulls":11},false,null,null,"",""]
["",{"$nulls":30},true,{"$nulls":5},false,{"$nulls":7},false,false,false,false,false,false,false,false,false,{"$nulls":11},false,null,null,"",""]
["",{"$nulls":30},true,{"$nulls":5},false,{"$nulls":7},false,false,false,false,false,false,false,false,false,{"$nulls":11},false,null,null,"",""]
["",{"$nulls":30},true,{"$nulls":5},false,{"$nulls":7},false,false,false,false,false,false,false,false,false,{"$nulls":11},false,null,null,"",""]
["",{"$nulls":30},true,{"$nulls":5},false,{"$nulls":7},false,false,false,false,false,false,false,false,false,{"$nulls":11},false,null,null,"",""]
["",{"$nulls":30},true,{"$nulls":5},false,{"$nulls":7},false,false,false,false,false,false,false,false,false,{"$nulls":11},false,null,null,"",""]
["",{"$nulls":30},true,{"$nulls":5},false,{"$nulls":7},false,false,false,false,false,false,false,false,false,{"$nulls":11},false,null,null,"",""]
["",{"$nulls":30},true,{"$nulls":5},false,{"$nulls":7},false,false,false,false,false,false,false,false,false,{"$nulls":11},false,null,null,"",""]
["",{"$nulls":30},true,{"$nulls":5},false,{"$nulls":7},false,false,false,false,false,false,false,false,false,{"$nulls":11},false,null,null,"",""]
["",{"$nulls":30},true,{"$nulls":5},false,{"$nulls":7},false,false,false,false,false,false,false,false,false,{"$nulls":11},false,null,null,"",""]
["",{"$nulls":30},true,{"$nulls":5},false,{"$nulls":7},false,false,false,false,false,false,false,false,false,{"$nulls":11},false,null,null,"",""]
["",{"$nulls":30},true,{"$nulls":5},false,{"$nulls":7},false,false,false,false,false,false,false,false,false,{"$nulls":11},false,null,null,"",""]
["",{"$nulls":30},true,{"$nulls":5},false,{"$nulls":7},false,false,false,false,false,false,false,false,false,{"$nulls":11},false,null,null,"",""]
["",{"$nulls":30},true,{"$nulls":5},false,{"$nulls":7},false,false,false,false,false,false,false,false,false,{"$nulls":11},false,null,null,"",""]
["",{"$nulls":30},true,{"$nulls":5},false,{"$nulls":7},false,false,false,false,false,false,false,false,false,{"$nulls":11},false,null,null,"",""]
["",{"$nulls":30},true,{"$nulls":5},false,{"$nulls":7},false,false,false,false,false,false,false,false,false,{"$nulls":11},false,null,null,"",""]
["",{"$nulls":30},true,{"$nulls":5},false,{"$nulls":7},false,false,false,false,false,false,false,false,false,{"$nulls":11},false,null,null,"",""]
["",{"$nulls":30},true,{"$nulls":5},false,{"$nulls":7},false,false,false,false,false,false,false,false,false,{"$nulls":11},false,null,null,"",""]
["",{"$nulls":30},true,{"$nulls":5},false,{"$nulls":7},false,false,false,false,false,false,false,false,false,{"$nulls":11},false,null,null,"",""]
["",{"$nulls":30},true,{"$nulls":5},false,{"$nulls":7},false,false,false,false,false,false,false,false,false,{"$nulls":11},false,null,null,"",""]
["",{"$nulls":30},true,{"$nulls":5},false,{"$nulls":7},false,false,false,false,false,false,false,false,false,{"$nulls":11},false,null,null,"",""]
["",{"$nulls":30},true,{"$nulls":5},false,{"$nulls":7},false,false,false,false,false,false,false,false,false,{"$nulls":11},false,null,null,"",""]
["",{"$nulls":30},true,{"$nulls":5},false,{"$nulls":7},false,false,false,false,false,false,false,false,false,{"$nulls":11},false,null,null,"",""]
["",{"$nulls":30},true,{"$nulls":5},false,{"$nulls":7},false,false,false,false,false,false,false,false,false,{"$nulls":11},false,null,null,"",""]
["",{"$nulls":30},true,{"$nulls":5},false,{"$nulls":7},false,false,false,false,false,false,false,false,false,{"$nulls":11},false,null,null,"",""]
["",{"$nulls":30},true,{"$nulls":5},false,{"$nulls":7},false,false,false,false,false,false,false,false,false,{"$nulls":11},false,null,null,"",""]
["",{"$nulls":30},true,{"$nulls":5},false,{"$nulls":7},false,false,false,false,false,false,false,false,false,{"$nulls":11},false,null,null,"",""]
["",{"$nulls":30},true,{"$nulls":5},false,{"$nulls":7},false,false,false,false,false,false,false,false,false,{"$nulls":11},false,null,null,"",""]
["",{"$nulls":30},true,{"$nulls":5},false,{"$nulls":7},false,false,false,false,false,false,false,false,false,{"$nulls":11},false,null,null,"",""]
["",{"$nulls":30},true,{"$nulls":5},false,{"$nulls":7},false,false,false,false,false,false,false,false,false,{"$nulls":11},false,null,null,"",""]
["",{"$nulls":30},true,{"$nulls":5},false,{"$nulls":7},false,false,false,false,false,false,false,false,false,{"$nulls":11},false,null,null,"",""]
["",{"$nulls":30},true,{"$nulls":5},false,{"$nulls":7},false,false,false,false,false,false,false,false,false,{"$nulls":11},false,null,null,"",""]
["",{"$nulls":30},true,{"$nulls":5},false,{"$nulls":7},false,false,false,false,false,false,false,false,false,{"$nulls":11},false,null,null,"",""]
["",{"$nulls":30},true,{"$nulls":5},false,{"$nulls":7},false,false,false,false,false,false,false,false,false,{"$nulls":11},false,null,null,"",""]
["",{"$nulls":30},true,{"$nulls":5},false,{"$nulls":7},false,false,false,false,false,false,false,false,false,{"$nulls":11},false,null,null,"",""]
["",{"$nulls":30},true,{"$nulls":5},false,{"$nulls":7},false,false,false,false,false,false,false,false,false,{"$nulls":11},false,null,null,"",""]
["",{"$nulls":30},true,{"$nulls":5},false,{"$nulls":7},false,false,false,false,false,false,false,false,false,{"$nulls":11},false,null,null,"",""]
["",{"$nulls":30},true,{"$nulls":5},false,{"$nulls":7},false,false,false,false,false,false,false,false,false,{"$nulls":11},false,null,null,"",""]
["",{"$nulls":30},true,{"$nulls":5},false,{"$nulls":7},false,false,false,false,false,false,false,false,false,{"$nulls":11},false,null,null,"",""]
["",{"$nulls":30},true,{"$nulls":5},false,{"$nulls":7},false,false,false,false,false,false,false,false,false,{"$nulls":11},false,null,null,"",""]
["",{"$nulls":30},true,{"$nulls":5},false,{"$nulls":7},false,false,false,false,false,false,false,false,false,{"$nulls":11},false,null,null,"",""]
["",{"$nulls":30},true,{"$nulls":5},false,{"$nulls":7},false,false,false,false,false,false,false,false,false,{"$nulls":11},false,null,null,"",""]
["",{"$nulls":30},true,{"$nulls":5},false,{"$nulls":7},false,false,false,false,false,false,false,false,false,{"$nulls":11},false,null,null,"",""]
["",{"$nulls":30},true,{"$nulls":5},false,{"$nulls":7},false,false,false,false,false,false,false,false,false,{"$nulls":11},false,null,null,"",""]
["",{"$nulls":30},true,{"$nulls":5},false,{"$nulls":7},false,false,false,false,false,false,false,false,false,{"$nulls":11},false,null,null,"",""]
["",{"$nulls":30},true,{"$nulls":5},false,{"$nulls":7},false,false,false,false,false,false,false,false,false,{"$nulls":11},false,null,null,"",""]
["",{"$nulls":30},true,{"$nulls":5},false,{"$nulls":7},false,false,false,false,false,false,false,false,false,{"$nulls":11},false,null,null,"",""]
["",{"$nulls":30},true,{"$nulls":5},false,{"$nulls":7},false,false,false,false,false,false,false,false,false,{"$nulls":11},false,null,null,"",""]
["",{"$nulls":30},true,{"$nulls":5},false,{"$nulls":7},false,false,false,false,false,false,false,false,false,{"$nulls":11},false,null,null,"",""]
["",{"$nulls":30},true,{"$nulls":5},false,{"$nulls":7},false,false,false,false,false,false,false,false,false,{"$nulls":11},false,null,null,"",""]
["",{"$nulls":30},true,{"$nulls":5},false,{"$nulls":7},false,false,false,false,false,false,false,false,false,{"$nulls":11},false,null,null,"",""]
["",{"$nulls":30},true,{"$nulls":5},false,{"$nulls":7},false,false,false,false,false,false,false,false,false,{"$nulls":11},false,null,null,"",""]
["",{"$nulls":30},true,{"$nulls":5},false,{"$nulls":7},false,false,false,false,false,false,false,false,false,{"$nulls":11},false,null,null,"",""]
["",{"$nulls":30},true,{"$nulls":5},false,{"$nulls":7},false,false,false,false,false,false,false,false,false,{"$nulls":11},false,null,null,"",""]
["",{"$nulls":30},true,{"$nulls":5},false,{"$nulls":7},false,false,false,false,false,false,false,false,false,{"$nulls":11},false,null,null,"",""]
["",{"$nulls":30},true,{"$nulls":5},false,{"$nulls":7},false,false,false,false,false,false,false,false,false,{"$nulls":11},false,null,null,"",""]
["",{"$nulls":30},true,{"$nulls":5},false,{"$nulls":7},false,false,false,false,false,false,false,false,false,{"$nulls":11},false,null,null,"",""]
["",{"$nulls":30},true,{"$nulls":5},false,{"$nulls":7},false,false,false,false,false,false,false,false,false,{"$nulls":11},false,null,null,"",""]
["",{"$nulls":30},true,{"$nulls":5},false,{"$nulls":7},false,false,false,false,false,false,false,false,false,{"$nulls":11},false,null,null,"",""]
["",{"$nulls":30},true,{"$nulls":5},false,{"$nulls":7},false,false,false,false,false,false,false,false,false,{"$nulls":11},false,null,null,"",""]
[{"$f":"IF(TRIM(B67)=\"\",\"\",TRIM(CONCATENATE(B67,\": \",TRIM(D67&\" \"&C67),O67)))","v":""},{"$nulls":30},true,{"$nulls":5},false,{"$nulls":7},false,false,false,false,false,false,false,false,false,{"$nulls":11},false,null,null,{"$f":"IF(AL67,A67,\"\")","v":""},{"$f":"IF(OR(TRIM(AP67)=\"\", AP67=\"Not Joint Holding\"),\"\",A67)","v":""}]
["",{"$nulls":30},true,{"$nulls":5},false,{"$nulls":7},false,false,false,false,false,false,false,false,false,{"$nulls":11},false,null,null,"",""]
["",{"$nulls":30},true,{"$nulls":5},false,{"$nulls":7},false,false,false,false,false,false,false,false,false,{"$nulls":11},false,null,null,"",""]
["",{"$nulls":30},true,{"$nulls":5},false,{"$nulls":7},false,false,false,false,false,false,false,false,false,{"$nulls":11},false,null,null,"",""]
["",{"$nulls":30},true,{"$nulls":5},false,{"$nulls":7},false,false,false,false,false,false,false,false,false,{"$nulls":11},false,null,null,"",""]
["",{"$nulls":30},true,{"$nulls":5},false,{"$nulls":7},false,false,false,false,false,false,false,false,false,{"$nulls":11},false,null,null,"",""]
["",{"$nulls":30},true,{"$nulls":5},false,{"$nulls":7},false,false,false,false,false,false,false,false,false,{"$nulls":11},false,null,null,"",""]
["",{"$nulls":30},true,{"$nulls":5},false,{"$nulls":7},false,false,false,false,false,false,false,false,false,{"$nulls":11},false,null,null,"",""]
["",{"$nulls":30},true,{"$nulls":5},false,{"$nulls":7},false,false,false,false,false,false,false,false,false,{"$nulls":11},false,null,null,"",""]
["",{"$nulls":30},true,{"$nulls":5},false,{"$nulls":7},false,false,false,false,false,false,false,false,false,{"$nulls":11},false,null,null,"",""]
["",{"$nulls":30},true,{"$nulls":5},false,{"$nulls":7},false,false,false,false,false,false,false,false,false,{"$nulls":11},false,null,null,"",""]
["",{"$nulls":30},true,{"$nulls":5},false,{"$nulls":7},false,false,false,false,false,false,false,false,false,{"$nulls":11},false,null,null,"",""]
["",{"$nulls":30},true,{"$nulls":5},false,{"$nulls":7},false,false,false,false,false,false,false,false,false,{"$nulls":11},false,null,null,"",""]
["",{"$nulls":30},true,{"$nulls":5},false,{"$nulls":7},false,false,false,false,false,false,false,false,false,{"$nulls":11},false,null,null,"",""]
["",{"$nulls":30},true,{"$nulls":5},false,{"$nulls":7},false,false,false,false,false,false,false,false,false,{"$nulls":11},false,null,null,"",""]
["",{"$nulls":30},true,{"$nulls":5},false,{"$nulls":7},false,false,false,false,false,false,false,false,false,{"$nulls":11},false,null,null,"",""]
["",{"$nulls":30},true,{"$nulls":5},false,{"$nulls":7},false,false,false,false,false,false,false,false,false,{"$nulls":11},false,null,null,"",""]
["",{"$nulls":30},true,{"$nulls":5},false,{"$nulls":7},false,false,false,false,false,false,false,false,false,{"$nulls":11},false,null,null,"",""]
["",{"$nulls":30},true,{"$nulls":5},false,{"$nulls":7},false,false,false,false,false,false,false,false,false,{"$nulls":11},false,null,null,"",""]
["",{"$nulls":30},true,{"$nulls":5},false,{"$nulls":7},false,false,false,false,false,false,false,false,false,{"$nulls":11},false,null,null,"",""]
["",{"$nulls":30},true,{"$nulls":5},false,{"$nulls":7},false,false,false,false,false,false,false,false,false,{"$nulls":11},false,null,null,"",""]
["",{"$nulls":30},true,{"$nulls":5},false,{"$nulls":7},false,false,false,false,false,false,false,false,false,{"$nulls":11},false,null,null,"",""]
["",{"$nulls":30},true,{"$nulls":5},false,{"$nulls":7},false,false,false,false,false,false,false,false,false,{"$nulls":11},false,null,null,"",""]
["",{"$nulls":30},true,{"$nulls":5},false,{"$nulls":7},false,false,false,false,false,false,false,false,false,{"$nulls":11},false,null,null,"",""]
["",{"$nulls":30},true,{"$nulls":5},false,{"$nulls":7},false,false,false,false,false,false,false,false,false,{"$nulls":11},false,null,null,"",""]
["",{"$nulls":30},true,{"$nulls":5},false,{"$nulls":7},false,false,false,false,false,false,false,false,false,{"$nulls":11},false,null,null,"",""]
["",{"$nulls":30},true,{"$nulls":5},false,{"$nulls":7},false,false,false,false,false,false,false,false,false,{"$nulls":11},false,null,null,"",""]
["",{"$nulls":30},true,{"$nulls":5},false,{"$nulls":7},false,false,false,false,false,false,false,false,false,{"$nulls":11},false,null,null,"",""]
["",{"$nulls":30},true,{"$nulls":5},false,{"$nulls":7},false,false,false,false,false,false,false,false,false,{"$nulls":11},false,null,null,"",""]
["",{"$nulls":30},true,{"$nulls":5},false,{"$nulls":7},false,false,false,false,false,false,false,false,false,{"$nulls":11},false,null,null,"",""]
["",{"$nulls":30},true,{"$nulls":5},false,{"$nulls":7},false,false,false,false,false,false,false,false,false,{"$nulls":11},false,null,null,"",""]
["",{"$nulls":30},true,{"$nulls":5},false,{"$nulls":7},false,false,false,false,false,false,false,false,false,{"$nulls":11},false,null,null,"",""]
["",{"$nulls":30},true,{"$nulls":5},false,{"$nulls":7},false,false,false,false,false,false,false,false,false,{"$nulls":11},false,null,null,"",""]
["",{"$nulls":30},true,{"$nulls":5},false,{"$nulls":7},false,false,false,false,false,false,false,false,false,{"$nulls":11},false,null,null,"",""]
["",{"$nulls":30},true,{"$nulls":5},false,{"$nulls":7},false,false,false,false,false,false,false,false,false,{"$nulls":11},false,null,null,"",""]
["",{"$nulls":30},true,{"$nulls":5},false,{"$nulls":7},false,false,false,false,false,false,false,false,false,{"$nulls":11},false,null,null,"",""]
["",{"$nulls":30},true,{"$nulls":5},false,{"$nulls":7},false,false,false,false,false,false,false,false,false,{"$nulls":11},false,null,null,"",""]
["",{"$nulls":30},true,{"$nulls":5},false,{"$nulls":7},false,false,false,false,false,false,false,false,false,{"$nulls":11},false,null,null,"",""]
["",{"$nulls":30},true,{"$nulls":5},false,{"$nulls":7},false,false,false,false,false,false,false,false,false,{"$nulls":11},false,null,null,"",""]
["",{"$nulls":30},true,{"$nulls":5},false,{"$nulls":7},false,false,false,false,false,false,false,false,false,{"$nulls":11},false,null,null,"",""]
["",{"$nulls":30},true,{"$nulls":5},false,{"$nulls":7},false,false,false,false,false,false,false,false,false,{"$nulls":11},false,null,null,"",""]
["",{"$nulls":30},true,{"$nulls":5},false,{"$nulls":7},false,false,false,false,false,false,false,false,false,{"$nulls":11},false,null,null,"",""]
["",{"$nulls":30},true,{"$nulls":5},false,{"$nulls":7},false,false,false,false,false,false,false,false,false,{"$nulls":11},false,null,null,"",""]
["",{"$nulls":30},true,{"$nulls":5},false,{"$nulls":7},false,false,false,false,false,false,false,false,false,{"$nulls":11},false,null,null,"",""]
["",{"$nulls":30},true,{"$nulls":5},false,{"$nulls":7},false,false,false,false,false,false,false,false,false,{"$nulls":11},false,null,null,"",""]
["",{"$nulls":30},true,{"$nulls":5},false,{"$nulls":7},false,false,false,false,false,false,false,false,false,{"$nulls":11},false,null,null,"",""]
["",{"$nulls":30},true,{"$nulls":5},false,{"$nulls":7},false,false,false,false,false,false,false,false,false,{"$nulls":11},false,null,null,"",""]
["",{"$nulls":30},true,{"$nulls":5},false,{"$nulls":7},false,false,false,false,false,false,false,false,false,{"$nulls":11},false,null,null,"",""]
["",{"$nulls":30},true,{"$nulls":5},false,{"$nulls":7},false,false,false,false,false,false,false,false,false,{"$nulls":11},false,null,null,"",""]
["",{"$nulls":30},true,{"$nulls":5},false,{"$nulls":7},false,false,false,false,false,false,false,false,false,{"$nulls":11},false,null,null,"",""]
["",{"$nulls":30},true,{"$nulls":5},false,{"$nulls":7},false,false,false,false,false,false,false,false,false,{"$nulls":11},false,null,null,"",""]
["",{"$nulls":30},true,{"$nulls":5},false,{"$nulls":7},false,false,false,false,false,false,false,false,false,{"$nulls":11},false,null,null,"",""]
["",{"$nulls":30},true,{"$nulls":5},false,{"$nulls":7},false,false,false,false,false,false,false,false,false,{"$nulls":11},false,null,null,"",""]
["",{"$nulls":30},true,{"$nulls":5},false,{"$nulls":7},false,false,false,false,false,false,false,false,false,{"$nulls":11},false,null,null,"",""]
["",{"$nulls":30},true,{"$nulls":5},false,{"$nulls":7},false,false,false,false,false,false,false,false,false,{"$nulls":11},false,null,null,"",""]
["",{"$nulls":30},true,{"$nulls":5},false,{"$nulls":7},false,false,false,false,false,false,false,false,false,{"$nulls":11},false,null,null,"",""]
["",{"$nulls":30},true,{"$nulls":5},false,{"$nulls":7},false,false,false,false,false,false,false,false,false,{"$nulls":11},false,null,null,"",""]
["",{"$nulls":30},true,{"$nulls":5},false,{"$nulls":7},false,false,false,false,false,false,false,false,false,{"$nulls":11},false,null,null,"",""]
["",{"$nulls":30},true,{"$nulls":5},false,{"$nulls":7},false,false,false,false,false,false,false,false,false,{"$nulls":11},false,null,null,"",""]
["",{"$nulls":30},true,{"$nulls":5},false,{"$nulls":7},false,false,false,false,false,false,false,false,false,{"$nulls":11},false,null,null,"",""]
["",{"$nulls":30},true,{"$nulls":5},false,{"$nulls":7},false,false,false,false,false,false,false,false,false,{"$nulls":11},false,null,null,"",""]
["",{"$nulls":30},true,{"$nulls":5},false,{"$nulls":7},false,false,false,false,false,false,false,false,false,{"$nulls":11},false,null,null,"",""]
["",{"$nulls":30},true,{"$nulls":5},false,{"$nulls":7},false,false,false,false,false,false,false,false,false,{"$nulls":11},false,null,null,"",""]
["",{"$nulls":30},true,{"$nulls":5},false,{"$nulls":7},false,false,false,false,false,false,false,false,false,{"$nulls":11},false,null,null,"",""]
[{"$f":"IF(TRIM(B131)=\"\",\"\",TRIM(CONCATENATE(B131,\": \",TRIM(D131&\" \"&C131),O131)))","v":""},{"$nulls":30},true,{"$nulls":5},false,{"$nulls":7},false,false,false,false,false,false,false,false,false,{"$nulls":11},false,null,null,{"$f":"IF(AL131,A131,\"\")","v":""},{"$f":"IF(OR(TRIM(AP131)=\"\", AP131=\"Not Joint Holding\"),\"\",A131)","v":""}]
["",{"$nulls":30},true,{"$nulls":5},false,{"$nulls":7},false,false,false,false,false,false,false,false,false,{"$nulls":11},false,null,null,"",""]
["",{"$nulls":30},true,{"$nulls":5},false,{"$nulls":7},false,false,false,false,false,false,false,false,false,{"$nulls":11},false,null,null,"",""]
["",{"$nulls":30},true,{"$nulls":5},false,{"$nulls":7},false,false,false,false,false,false,false,false,false,{"$nulls":11},false,null,null,"",""]
["",{"$nulls":30},true,{"$nulls":5},false,{"$nulls":7},false,false,false,false,false,false,false,false,false,{"$nulls":11},false,null,null,"",""]
["",{"$nulls":30},true,{"$nulls":5},false,{"$nulls":7},false,false,false,false,false,false,false,false,false,{"$nulls":11},false,null,null,"",""]
["",{"$nulls":30},true,{"$nulls":5},false,{"$nulls":7},false,false,false,false,false,false,false,false,false,{"$nulls":11},false,null,null,"",""]
["",{"$nulls":30},true,{"$nulls":5},false,{"$nulls":7},false,false,false,false,false,false,false,false,false,{"$nulls":11},false,null,null,"",""]
["",{"$nulls":30},true,{"$nulls":5},false,{"$nulls":7},false,false,false,false,false,false,false,false,false,{"$nulls":11},false,null,null,"",""]
["",{"$nulls":30},true,{"$nulls":5},false,{"$nulls":7},false,false,false,false,false,false,false,false,false,{"$nulls":11},false,null,null,"",""]
["",{"$nulls":30},true,{"$nulls":5},false,{"$nulls":7},false,false,false,false,false,false,false,false,false,{"$nulls":11},false,null,null,"",""]
["",{"$nulls":30},true,{"$nulls":5},false,{"$nulls":7},false,false,false,false,false,false,false,false,false,{"$nulls":11},false,null,null,"",""]
["",{"$nulls":30},true,{"$nulls":5},false,{"$nulls":7},false,false,false,false,false,false,false,false,false,{"$nulls":11},false,null,null,"",""]
["",{"$nulls":30},true,{"$nulls":5},false,{"$nulls":7},false,false,false,false,false,false,false,false,false,{"$nulls":11},false,null,null,"",""]
["",{"$nulls":30},true,{"$nulls":5},false,{"$nulls":7},false,false,false,false,false,false,false,false,false,{"$nulls":11},false,null,null,"",""]
["",{"$nulls":30},true,{"$nulls":5},false,{"$nulls":7},false,false,false,false,false,false,false,false,false,{"$nulls":11},false,null,null,"",""]
["",{"$nulls":30},true,{"$nulls":5},false,{"$nulls":7},false,false,false,false,false,false,false,false,false,{"$nulls":11},false,null,null,"",""]
["",{"$nulls":30},true,{"$nulls":5},false,{"$nulls":7},false,false,false,false,false,false,false,false,false,{"$nulls":11},false,null,null,"",""]
["",{"$nulls":30},true,{"$nulls":5},false,{"$nulls":7},false,false,false,false,false,false,false,false,false,{"$nulls":11},false,null,null,"",""]
["",{"$nulls":30},true,{"$nulls":5},false,{"$nulls":7},false,false,false,false,false,false,false,false,false,{"$nulls":11},false,null,null,"",""]
["",{"$nulls":30},true,{"$nulls":5},false,{"$nulls":7},false,false,false,false,false,false,false,false,false,{"$nulls":11},false,null,null,"",""]
["",{"$nulls":30},true,{"$nulls":5},false,{"$nulls":7},false,false,false,false,false,false,false,false,false,{"$nulls":11},false,null,null,"",""]
["",{"$nulls":30},true,{"$nulls":5},false,{"$nulls":7},false,false,false,false,false,false,false,false,false,{"$nulls":11},false,null,null,"",""]
["",{"$nulls":30},true,{"$nulls":5},false,{"$nulls":7},false,false,false,false,false,false,false,false,false,{"$nulls":11},false,null,null,"",""]
["",{"$nulls":30},true,{"$nulls":5},false,{"$nulls":7},false,false,false,false,false,false,false,false,false,{"$nulls":11},false,null,null,"",""]
["",{"$nulls":30},true,{"$nulls":5},false,{"$nulls":7},false,false,false,false,false,false,false,false,false,{"$nulls":11},false,null,null,"",""]
["",{"$nulls":30},true,{"$nulls":5},false,{"$nulls":7},false,false,false,false,false,false,false,false,false,{"$nulls":11},false,null,null,"",""]
["",{"$nulls":30},true,{"$nulls":5},false,{"$nulls":7},false,false,false,false,false,false,false,false,false,{"$nulls":11},false,null,null,"",""]
["",{"$nulls":30},true,{"$nulls":5},false,{"$nulls":7},false,false,false,false,false,false,false,false,false,{"$nulls":11},false,null,null,"",""]
["",{"$nulls":30},true,{"$nulls":5},false,{"$nulls":7},false,false,false,false,false,false,false,false,false,{"$nulls":11},false,null,null,"",""]
["",{"$nulls":30},true,{"$nulls":5},false,{"$nulls":7},false,false,false,false,false,false,false,false,false,{"$nulls":11},false,null,null,"",""]
["",{"$nulls":30},true,{"$nulls":5},false,{"$nulls":7},false,false,false,false,false,false,false,false,false,{"$nulls":11},false,null,null,"",""]
["",{"$nulls":30},true,{"$nulls":5},false,{"$nulls":7},false,false,false,false,false,false,false,false,false,{"$nulls":11},false,null,null,"",""]
["",{"$nulls":30},true,{"$nulls":5},false,{"$nulls":7},false,false,false,false,false,false,false,false,false,{"$nulls":11},false,null,null,"",""]
["",{"$nulls":30},true,{"$nulls":5},false,{"$nulls":7},false,false,false,false,false,false,false,false,false,{"$nulls":11},false,null,null,"",""]
["",{"$nulls":30},true,{"$nulls":5},false,{"$nulls":7},false,false,false,false,false,false,false,false,false,{"$nulls":11},false,null,null,"",""]
["",{"$nulls":30},true,{"$nulls":5},false,{"$nulls":7},false,false,false,false,false,false,false,false,false,{"$nulls":11},false,null,null,"",""]
["",{"$nulls":30},true,{"$nulls":5},false,{"$nulls":7},false,false,false,false,false,false,false,false,false,{"$nulls":11},false,null,null,"",""]
["",{"$nulls":30},true,{"$nulls":5},false,{"$nulls":7},false,false,false,false,false,false,false,false,false,{"$nulls":11},false,null,null,"",""]
["",{"$nulls":30},true,{"$nulls":5},false,{"$nulls":7},false,false,false,false,false,false,false,false,false,{"$nulls":11},false,null,null,"",""]
["",{"$nulls":30},true,{"$nulls":5},false,{"$nulls":7},false,false,false,false,false,false,false,false,false,{"$nulls":11},false,null,null,"",""]
["",{"$nulls":30},true,{"$nulls":5},false,{"$nulls":7},false,false,false,false,false,false,false,false,false,{"$nulls":11},false,null,null,"",""]
["",{"$nulls":30},true,{"$nulls":5},false,{"$nulls":7},false,false,false,false,false,false,false,false,false,{"$nulls":11},false,null,null,"",""]
["",{"$nulls":30},true,{"$nulls":5},false,{"$nulls":7},false,false,false,false,false,false,false,false,false,{"$nulls":11},false,null,null,"",""]
["",{"$nulls":30},true,{"$nulls":5},false,{"$nulls":7},false,false,false,false,false,false,false,false,false,{"$nulls":11},false,null,null,"",""]
["",{"$nulls":30},true,{"$nulls":5},false,{"$nulls":7},false,false,false,false,false,false,false,false,false,{"$nulls":11},false,null,null,"",""]
["",{"$nulls":30},true,{"$nulls":5},false,{"$nulls":7},false,false,false,false,false,false,false,false,false,{"$nulls":11},false,null,null,"",""]
["",{"$nulls":30},true,{"$nulls":5},false,{"$nulls":7},false,false,false,false,false,false,false,false,false,{"$nulls":11},false,null,null,"",""]
["",{"$nulls":30},true,{"$nulls":5},false,{"$nulls":7},false,false,false,false,false,false,false,false,false,{"$nulls":11},false,null,null,"",""]
["",{"$nulls":30},true,{"$nulls":5},false,{"$nulls":7},false,false,false,false,false,false,false,false,false,{"$nulls":11},false,null,null,"",""]
["",{"$nulls":30},true,{"$nulls":5},false,{"$nulls":7},false,false,false,false,false,false,false,false,false,{"$nulls":11},false,null,null,"",""]
["",{"$nulls":30},true,{"$nulls":5},false,{"$nulls":7},false,false,false,false,false,false,false,false,false,{"$nulls":11},false,null,null,"",""]
["",{"$nulls":30},true,{"$nulls":5},false,{"$nulls":7},false,false,false,false,false,false,false,false,false,{"$nulls":11},false,null,null,"",""]
["",{"$nulls":30},true,{"$nulls":5},false,{"$nulls":7},false,false,false,false,false,false,false,false,false,{"$nulls":11},false,null,null,"",""]
["",{"$nulls":30},true,{"$nulls":5},false,{"$nulls":7},false,false,false,false,false,false,false,false,false,{"$nulls":11},false,null,null,"",""]
["",{"$nulls":30},true,{"$nulls":5},false,{"$nulls":7},false,false,false,false,false,false,false,false,false,{"$nulls":11},false,null,null,"",""]
["",{"$nulls":30},true,{"$nulls":5},false,{"$nulls":7},false,false,false,false,false,false,false,false,false,{"$nulls":11},false,null,null,"",""]
["",{"$nulls":30},true,{"$nulls":5},false,{"$nulls":7},false,false,false,false,false,false,false,false,false,{"$nulls":11},false,null,null,"",""]
["",{"$nulls":30},true,{"$nulls":5},false,{"$nulls":7},false,false,false,false,false,false,false,false,false,{"$nulls":11},false,null,null,"",""]
["",{"$nulls":30},true,{"$nulls":5},false,{"$nulls":7},false,false,false,false,false,false,false,false,false,{"$nulls":11},false,null,null,"",""]
["",{"$nulls":30},true,{"$nulls":5},false,{"$nulls":7},false,false,false,false,false,false,false,false,false,{"$nulls":11},false,null,null,"",""]
["",{"$nulls":30},true,{"$nulls":5},false,{"$nulls":7},false,false,false,false,false,false,false,false,false,{"$nulls":11},false,null,null,"",""]
["",{"$nulls":30},true,{"$nulls":5},false,{"$nulls":7},false,false,false,false,false,false,false,false,false,{"$nulls":11},false,null,null,"",""]
["",{"$nulls":30},true,{"$nulls":5},false,{"$nulls":7},false,false,false,false,false,false,false,false,false,{"$nulls":11},false,null,null,"",""]
[{"$f":"IF(TRIM(B195)=\"\",\"\",TRIM(CONCATENATE(B195,\": \",TRIM(D195&\" \"&C195),O195)))","v":""},{"$nulls":30},true,{"$nulls":5},false,{"$nulls":7},false,false,false,false,false,false,false,false,false,{"$nulls":11},false,null,null,{"$f":"IF(AL195,A195,\"\")","v":""},{"$f":"IF(OR(TRIM(AP195)=\"\", AP195=\"Not Joint Holding\"),\"\",A195)","v":""}]
["",{"$nulls":30},true,{"$nulls":5},false,{"$nulls":7},false,false,false,false,false,false,false,false,false,{"$nulls":11},false,null,null,"",""]
["",{"$nulls":30},true,{"$nulls":5},false,{"$nulls":7},false,false,false,false,false,false,false,false,false,{"$nulls":11},false,null,null,"",""]
["",{"$nulls":30},true,{"$nulls":5},false,{"$nulls":7},false,false,false,false,false,false,false,false,false,{"$nulls":11},false,null,null,"",""]
["",{"$nulls":30},true,{"$nulls":5},false,{"$nulls":7},false,false,false,false,false,false,false,false,false,{"$nulls":11},false,null,null,"",""]
["",{"$nulls":30},true,{"$nulls":5},false,{"$nulls":7},false,false,false,false,false,false,false,false,false,{"$nulls":11},false,null,null,"",""]
["",{"$nulls":30},true,{"$nulls":5},false,{"$nulls":7},false,false,false,false,false,false,false,false,false,{"$nulls":11},false,null,null,"",""]
["",{"$nulls":30},true,{"$nulls":5},false,{"$nulls":7},false,false,false,false,false,false,false,false,false,{"$nulls":11},false,null,null,"",""]
["",{"$nulls":30},true,{"$nulls":5},false,{"$nulls":7},false,false,false,false,false,false,false,false,false,{"$nulls":11},false,null,null,"",""]
["",{"$nulls":30},true,{"$nulls":5},false,{"$nulls":7},false,false,false,false,false,false,false,false,false,{"$nulls":11},false,null,null,"",""]
["",{"$nulls":30},true,{"$nulls":5},false,{"$nulls":7},false,false,false,false,false,false,false,false,false,{"$nulls":11},false,null,null,"",""]
["",{"$nulls":30},true,{"$nulls":5},false,{"$nulls":7},false,false,false,false,false,false,false,false,false,{"$nulls":11},false,null,null,"",""]
["",{"$nulls":30},true,{"$nulls":5},false,{"$nulls":7},false,false,false,false,false,false,false,false,false,{"$nulls":11},false,null,null,"",""]
["",{"$nulls":30},true,{"$nulls":5},false,{"$nulls":7},false,false,false,false,false,false,false,false,false,{"$nulls":11},false,null,null,"",""]
["",{"$nulls":30},true,{"$nulls":5},false,{"$nulls":7},false,false,false,false,false,false,false,false,false,{"$nulls":11},false,null,null,"",""]
["",{"$nulls":30},true,{"$nulls":5},false,{"$nulls":7},false,false,false,false,false,false,false,false,false,{"$nulls":11},false,null,null,"",""]
["",{"$nulls":30},true,{"$nulls":5},false,{"$nulls":7},false,false,false,false,false,false,false,false,false,{"$nulls":11},false,null,null,"",""]
["",{"$nulls":30},true,{"$nulls":5},false,{"$nulls":7},false,false,false,false,false,false,false,false,false,{"$nulls":11},false,null,null,"",""]
["",{"$nulls":30},true,{"$nulls":5},false,{"$nulls":7},false,false,false,false,false,false,false,false,false,{"$nulls":11},false,null,null,"",""]
["",{"$nulls":30},true,{"$nulls":5},false,{"$nulls":7},false,false,false,false,false,false,false,false,false,{"$nulls":11},false,null,null,"",""]
["",{"$nulls":30},true,{"$nulls":5},false,{"$nulls":7},false,false,false,false,false,false,false,false,false,{"$nulls":11},false,null,null,"",""]
["",{"$nulls":30},true,{"$nulls":5},false,{"$nulls":7},false,false,false,false,false,false,false,false,false,{"$nulls":11},false,null,null,"",""]
["",{"$nulls":30},true,{"$nulls":5},false,{"$nulls":7},false,false,false,false,false,false,false,false,false,{"$nulls":11},false,null,null,"",""]
["",{"$nulls":30},true,{"$nulls":5},false,{"$nulls":7},false,false,false,false,false,false,false,false,false,{"$nulls":11},false,null,null,"",""]
["",{"$nulls":30},true,{"$nulls":5},false,{"$nulls":7},false,false,false,false,false,false,false,false,false,{"$nulls":11},false,null,null,"",""]
["",{"$nulls":30},true,{"$nulls":5},false,{"$nulls":7},false,false,false,false,false,false,false,false,false,{"$nulls":11},false,null,null,"",""]
["",{"$nulls":30},true,{"$nulls":5},false,{"$nulls":7},false,false,false,false,false,false,false,false,false,{"$nulls":11},false,null,null,"",""]
["",{"$nulls":30},true,{"$nulls":5},false,{"$nulls":7},false,false,false,false,false,false,false,false,false,{"$nulls":11},false,null,null,"",""]
["",{"$nulls":30},true,{"$nulls":5},false,{"$nulls":7},false,false,false,false,false,false,false,false,false,{"$nulls":11},false,null,null,"",""]
["",{"$nulls":30},true,{"$nulls":5},false,{"$nulls":7},false,false,false,false,false,false,false,false,false,{"$nulls":11},false,null,null,"",""]
["",{"$nulls":30},true,{"$nulls":5},false,{"$nulls":7},false,false,false,false,false,false,false,false,false,{"$nulls":11},false,null,null,"",""]
["",{"$nulls":30},true,{"$nulls":5},false,{"$nulls":7},false,false,false,false,false,false,false,false,false,{"$nulls":11},false,null,null,"",""]
["",{"$nulls":30},true,{"$nulls":5},false,{"$nulls":7},false,false,false,false,false,false,false,false,false,{"$nulls":11},false,null,null,"",""]
["",{"$nulls":30},true,{"$nulls":5},false,{"$nulls":7},false,false,false,false,false,false,false,false,false,{"$nulls":11},false,null,null,"",""]
["",{"$nulls":30},true,{"$nulls":5},false,{"$nulls":7},false,false,false,false,false,false,false,false,false,{"$nulls":11},false,null,null,"",""]
["",{"$nulls":30},true,{"$nulls":5},false,{"$nulls":7},false,false,false,false,false,false,false,false,false,{"$nulls":11},false,null,null,"",""]
["",{"$nulls":30},true,{"$nulls":5},false,{"$nulls":7},false,false,false,false,false,false,false,false,false,{"$nulls":11},false,null,null,"",""]
["",{"$nulls":30},true,{"$nulls":5},false,{"$nulls":7},false,false,false,false,false,false,false,false,false,{"$nulls":11},false,null,null,"",""]
["",{"$nulls":30},true,{"$nulls":5},false,{"$nulls":7},false,false,false,false,false,false,false,false,false,{"$nulls":11},false,null,null,"",""]
["",{"$nulls":30},true,{"$nulls":5},false,{"$nulls":7},false,false,false,false,false,false,false,false,false,{"$nulls":11},false,null,null,"",""]
["",{"$nulls":30},true,{"$nulls":5},false,{"$nulls":7},false,false,false,false,false,false,false,false,false,{"$nulls":11},false,null,null,"",""]
["",{"$nulls":30},true,{"$nulls":5},false,{"$nulls":7},false,false,false,false,false,false,false,false,false,{"$nulls":11},false,null,null,"",""]
["",{"$nulls":30},true,{"$nulls":5},false,{"$nulls":7},false,false,false,false,false,false,false,false,false,{"$nulls":11},false,null,null,"",""]
["",{"$nulls":30},true,{"$nulls":5},false,{"$nulls":7},false,false,false,false,false,false,false,false,false,{"$nulls":11},false,null,null,"",""]
["",{"$nulls":30},true,{"$nulls":5},false,{"$nulls":7},false,false,false,false,false,false,false,false,false,{"$nulls":11},false,null,null,"",""]
["",{"$nulls":30},true,{"$nulls":5},false,{"$nulls":7},false,false,false,false,false,false,false,false,false,{"$nulls":11},false,null,null,"",""]
["",{"$nulls":30},true,{"$nulls":5},false,{"$nulls":7},false,false,false,false,false,false,false,false,false,{"$nulls":11},false,null,null,"",""]
["",{"$nulls":30},true,{"$nulls":5},false,{"$nulls":7},false,false,false,false,false,false,false,false,false,{"$nulls":11},false,null,null,"",""]
["",{"$nulls":30},true,{"$nulls":5},false,{"$nulls":7},false,false,false,false,false,false,false,false,false,{"$nulls":11},false,null,null,"",""]
["",{"$nulls":30},true,{"$nulls":5},false,{"$nulls":7},false,false,false,false,false,false,false,false,false,{"$nulls":11},false,null,null,"",""]
["",{"$nulls":30},true,{"$nulls":5},false,{"$nulls":7},false,false,false,false,false,false,false,false,false,{"$nulls":11},false,null,null,"",""]
["",{"$nulls":30},true,{"$nulls":5},false,{"$nulls":7},false,false,false,false,false,false,false,false,false,{"$nulls":11},false,null,null,"",""]
["",{"$nulls":30},true,{"$nulls":5},false,{"$nulls":7},false,false,false,false,false,false,false,false,false,{"$nulls":11},false,null,null,"",""]
["",{"$nulls":30},true,{"$nulls":5},false,{"$nulls":7},false,false,false,false,false,false,false,false,false,{"$nulls":11},false,null,null,"",""]
["",{"$nulls":30},true,{"$nulls":5},false,{"$nulls":7},false,false,false,false,false,false,false,false,false,{"$nulls":11},false,null,null,"",""]
["",{"$nulls":30},true,{"$nulls":5},false,{"$nulls":7},false,false,false,false,false,false,false,false,false,{"$nulls":11},false,null,null,"",""]
["",{"$nulls":30},true,{"$nulls":5},false,{"$nulls":7},false,false,false,false,false,false,false,false,false,{"$nulls":11},false,null,null,"",""]
["",{"$nulls":30},true,{"$nulls":5},false,{"$nulls":7},false,false,false,false,false,false,false,false,false,{"$nulls":11},false,null,null,"",""]
["",{"$nulls":30},true,{"$nulls":5},false,{"$nulls":7},false,false,false,false,false,false,false,false,false,{"$nulls":11},false,null,null,"",""]
["",{"$nulls":30},true,{"$nulls":5},false,{"$nulls":7},false,false,false,false,false,false,false,false,false,{"$nulls":11},false,null,null,"",""]
["",{"$nulls":30},true,{"$nulls":5},false,{"$nulls":7},false,false,false,false,false,false,false,false,false,{"$nulls":11},false,null,null,"",""]
["",{"$nulls":30},true,{"$nulls":5},false,{"$nulls":7},false,false,false,false,false,false,false,false,false,{"$nulls":11},false,null,null,"",""]
["",{"$nulls":30},true,{"$nulls":5},false,{"$nulls":7},false,false,false,false,false,false,false,false,false,{"$nulls":11},false,null,null,"",""]
["",{"$nulls":30},true,{"$nulls":5},false,{"$nulls":7},false,false,false,false,false,false,false,false,false,{"$nulls":11},false,null,null,"",""]
[{"$f":"IF(TRIM(B259)=\"\",\"\",TRIM(CONCATENATE(B259,\": \",TRIM(D259&\" \"&C259),O259)))","v":""},{"$nulls":30},true,{"$nulls":5},false,{"$nulls":7},false,false,false,false,false,false,false,false,false,{"$nulls":11},false,null,null,{"$f":"IF(AL259,A259,\"\")","v":""},{"$f":"IF(OR(TRIM(AP259)=\"\", AP259=\"Not Joint Holding\"),\"\",A259)","v":""}]
["",{"$nulls":30},true,{"$nulls":5},false,{"$nulls":7},false,false,false,false,false,false,false,false,false,{"$nulls":11},false,null,null,"",""]
["",{"$nulls":30},true,{"$nulls":5},false,{"$nulls":7},false,false,false,false,false,false,false,false,false,{"$nulls":11},false,null,null,"",""]
["",{"$nulls":30},true,{"$nulls":5},false,{"$nulls":7},false,false,false,false,false,false,false,false,false,{"$nulls":11},false,null,null,"",""]
["",{"$nulls":30},true,{"$nulls":5},false,{"$nulls":7},false,false,false,false,false,false,false,false,false,{"$nulls":11},false,null,null,"",""]
["",{"$nulls":30},true,{"$nulls":5},false,{"$nulls":7},false,false,false,false,false,false,false,false,false,{"$nulls":11},false,null,null,"",""]
["",{"$nulls":30},true,{"$nulls":5},false,{"$nulls":7},false,false,false,false,false,false,false,false,false,{"$nulls":11},false,null,null,"",""]
["",{"$nulls":30},true,{"$nulls":5},false,{"$nulls":7},false,false,false,false,false,false,false,false,false,{"$nulls":11},false,null,null,"",""]
["",{"$nulls":30},true,{"$nulls":5},false,{"$nulls":7},false,false,false,false,false,false,false,false,false,{"$nulls":11},false,null,null,"",""]
["",{"$nulls":30},true,{"$nulls":5},false,{"$nulls":7},false,false,false,false,false,false,false,false,false,{"$nulls":11},false,null,null,"",""]
["",{"$nulls":30},true,{"$nulls":5},false,{"$nulls":7},false,false,false,false,false,false,false,false,false,{"$nulls":11},false,null,null,"",""]
["",{"$nulls":30},true,{"$nulls":5},false,{"$nulls":7},false,false,false,false,false,false,false,false,false,{"$nulls":11},false,null,null,"",""]
["",{"$nulls":30},true,{"$nulls":5},false,{"$nulls":7},false,false,false,false,false,false,false,false,false,{"$nulls":11},false,null,null,"",""]
["",{"$nulls":30},true,{"$nulls":5},false,{"$nulls":7},false,false,false,false,false,false,false,false,false,{"$nulls":11},false,null,null,"",""]
["",{"$nulls":30},true,{"$nulls":5},false,{"$nulls":7},false,false,false,false,false,false,false,false,false,{"$nulls":11},false,null,null,"",""]
["",{"$nulls":30},true,{"$nulls":5},false,{"$nulls":7},false,false,false,false,false,false,false,false,false,{"$nulls":11},false,null,null,"",""]
["",{"$nulls":30},true,{"$nulls":5},false,{"$nulls":7},false,false,false,false,false,false,false,false,false,{"$nulls":11},false,null,null,"",""]
["",{"$nulls":30},true,{"$nulls":5},false,{"$nulls":7},false,false,false,false,false,false,false,false,false,{"$nulls":11},false,null,null,"",""]
["",{"$nulls":30},true,{"$nulls":5},false,{"$nulls":7},false,false,false,false,false,false,false,false,false,{"$nulls":11},false,null,null,"",""]
["",{"$nulls":30},true,{"$nulls":5},false,{"$nulls":7},false,false,false,false,false,false,false,false,false,{"$nulls":11},false,null,null,"",""]
["",{"$nulls":30},true,{"$nulls":5},false,{"$nulls":7},false,false,false,false,false,false,false,false,false,{"$nulls":11},false,null,null,"",""]
["",{"$nulls":30},true,{"$nulls":5},false,{"$nulls":7},false,false,false,false,false,false,false,false,false,{"$nulls":11},false,null,null,"",""]
["",{"$nulls":30},true,{"$nulls":5},false,{"$nulls":7},false,false,false,false,false,false,false,false,false,{"$nulls":11},false,null,null,"",""]
["",{"$nulls":30},true,{"$nulls":5},false,{"$nulls":7},false,false,false,false,false,false,false,false,false,{"$nulls":11},false,null,null,"",""]
["",{"$nulls":30},true,{"$nulls":5},false,{"$nulls":7},false,false,false,false,false,false,false,false,false,{"$nulls":11},false,null,null,"",""]
["",{"$nulls":30},true,{"$nulls":5},false,{"$nulls":7},false,false,false,false,false,false,false,false,false,{"$nulls":11},false,null,null,"",""]
["",{"$nulls":30},true,{"$nulls":5},false,{"$nulls":7},false,false,false,false,false,false,false,false,false,{"$nulls":11},false,null,null,"",""]
["",{"$nulls":30},true,{"$nulls":5},false,{"$nulls":7},false,false,false,false,false,false,false,false,false,{"$nulls":11},false,null,null,"",""]
["",{"$nulls":30},true,{"$nulls":5},false,{"$nulls":7},false,false,false,false,false,false,false,false,false,{"$nulls":11},false,null,null,"",""]
["",{"$nulls":30},true,{"$nulls":5},false,{"$nulls":7},false,false,false,false,false,false,false,false,false,{"$nulls":11},false,null,null,"",""]
["",{"$nulls":30},true,{"$nulls":5},false,{"$nulls":7},false,false,false,false,false,false,false,false,false,{"$nulls":11},false,null,null,"",""]
["",{"$nulls":30},true,{"$nulls":5},false,{"$nulls":7},false,false,false,false,false,false,false,false,false,{"$nulls":11},false,null,null,"",""]
["",{"$nulls":30},true,{"$nulls":5},false,{"$nulls":7},false,false,false,false,false,false,false,false,false,{"$nulls":11},false,null,null,"",""]
["",{"$nulls":30},true,{"$nulls":5},false,{"$nulls":7},false,false,false,false,false,false,false,false,false,{"$nulls":11},false,null,null,"",""]
["",{"$nulls":30},true,{"$nulls":5},false,{"$nulls":7},false,false,false,false,false,false,false,false,false,{"$nulls":11},false,null,null,"",""]
["",{"$nulls":30},true,{"$nulls":5},false,{"$nulls":7},false,false,false,false,false,false,false,false,false,{"$nulls":11},false,null,null,"",""]
["",{"$nulls":30},true,{"$nulls":5},false,{"$nulls":7},false,false,false,false,false,false,false,false,false,{"$nulls":11},false,null,null,"",""]
["",{"$nulls":30},true,{"$nulls":5},false,{"$nulls":7},false,false,false,false,false,false,false,false,false,{"$nulls":11},false,null,null,"",""]
["",{"$nulls":30},true,{"$nulls":5},false,{"$nulls":7},false,false,false,false,false,false,false,false,false,{"$nulls":11},false,null,null,"",""]
["",{"$nulls":30},true,{"$nulls":5},false,{"$nulls":7},false,false,false,false,false,false,false,false,false,{"$nulls":11},false,null,null,"",""]
["",{"$nulls":30},true,{"$nulls":5},false,{"$nulls":7},false,false,false,false,false,false,false,false,false,{"$nulls":11},false,null,null,"",""]
["",{"$nulls":30},true,{"$nulls":5},false,{"$nulls":7},false,false,false,false,false,false,false,false,false,{"$nulls":11},false,null,null,"",""]
["",{"$nulls":30},true,{"$nulls":5},false,{"$nulls":7},false,false,false,false,false,false,false,false,false,{"$nulls":11},false,null,null,"",""]
["",{"$nulls":30},true,{"$nulls":5},false,{"$nulls":7},false,false,false,false,false,false,false,false,false,{"$nulls":11},false,null,null,"",""]
["",{"$nulls":30},true,{"$nulls":5},false,{"$nulls":7},false,false,false,false,false,false,false,false,false,{"$nulls":11},false,null,null,"",""]
["",{"$nulls":30},true,{"$nulls":5},false,{"$nulls":7},false,false,false,false,false,false,false,false,false,{"$nulls":11},false,null,null,"",""]
["",{"$nulls":30},true,{"$nulls":5},false,{"$nulls":7},false,false,false,false,false,false,false,false,false,{"$nulls":11},false,null,null,"",""]
["",{"$nulls":30},true,{"$nulls":5},false,{"$nulls":7},false,false,false,false,false,false,false,false,false,{"$nulls":11},false,null,null,"",""]
["",{"$nulls":30},true,{"$nulls":5},false,{"$nulls":7},false,false,false,false,false,false,false,false,false,{"$nulls":11},false,null,null,"",""]
["",{"$nulls":30},true,{"$nulls":5},false,{"$nulls":7},false,false,false,false,false,false,false,false,false,{"$nulls":11},false,null,null,"",""]
["",{"$nulls":30},true,{"$nulls":5},false,{"$nulls":7},false,false,false,false,false,false,false,false,false,{"$nulls":11},false,null,null,"",""]
["",{"$nulls":30},true,{"$nulls":5},false,{"$nulls":7},false,false,false,false,false,false,false,false,false,{"$nulls":11},false,null,null,"",""]
["",{"$nulls":30},true,{"$nulls":5},false,{"$nulls":7},false,false,false,false,false,false,false,false,false,{"$nulls":11},false,null,null,"",""]
["",{"$nulls":30},true,{"$nulls":5},false,{"$nulls":7},false,false,false,false,false,false,false,false,false,{"$nulls":11},false,null,null,"",""]
["",{"$nulls":30},true,{"$nulls":5},false,{"$nulls":7},false,false,false,false,false,false,false,false,false,{"$nulls":11},false,null,null,"",""]
["",{"$nulls":30},true,{"$nulls":5},false,{"$nulls":7},false,false,false,false,false,false,false,false,false,{"$nulls":11},false,null,null,"",""]
["",{"$nulls":30},true,{"$nulls":5},false,{"$nulls":7},false,false,false,false,false,false,false,false,false,{"$nulls":11},false,null,null,"",""]
["",{"$nulls":30},true,{"$nulls":5},false,{"$nulls":7},false,false,false,false,false,false,false,false,false,{"$nulls":11},false,null,null,"",""]
["",{"$nulls":30},true,{"$nulls":5},false,{"$nulls":7},false,false,false,false,false,false,false,false,false,{"$nulls":11},false,null,null,"",""]
["",{"$nulls":30},true,{"$nulls":5},false,{"$nulls":7},false,false,false,false,false,false,false,false,false,{"$nulls":11},false,null,null,"",""]
["",{"$nulls":30},true,{"$nulls":5},false,{"$nulls":7},false,false,false,false,false,false,false,false,false,{"$nulls":11},false,null,null,"",""]
["",{"$nulls":30},true,{"$nulls":5},false,{"$nulls":7},false,false,false,false,false,false,false,false,false,{"$nulls":11},false,null,null,"",""]
["",{"$nulls":30},true,{"$nulls":5},false,{"$nulls":7},false,false,false,false,false,false,false,false,false,{"$nulls":11},false,null,null,"",""]
["",{"$nulls":30},true,{"$nulls":5},false,{"$nulls":7},false,false,false,false,false,false,false,false,false,{"$nulls":11},false,null,null,"",""]
[{"$f":"IF(TRIM(B323)=\"\",\"\",TRIM(CONCATENATE(B323,\": \",TRIM(D323&\" \"&C323),O323)))","v":""},{"$nulls":30},true,{"$nulls":5},false,{"$nulls":7},false,false,false,false,false,false,false,false,false,{"$nulls":11},false,null,null,{"$f":"IF(AL323,A323,\"\")","v":""},{"$f":"IF(OR(TRIM(AP323)=\"\", AP323=\"Not Joint Holding\"),\"\",A323)","v":""}]
["",{"$nulls":30},true,{"$nulls":5},false,{"$nulls":7},false,false,false,false,false,false,false,false,false,{"$nulls":11},false,null,null,"",""]
["",{"$nulls":30},true,{"$nulls":5},false,{"$nulls":7},false,false,false,false,false,false,false,false,false,{"$nulls":11},false,null,null,"",""]
["",{"$nulls":30},true,{"$nulls":5},false,{"$nulls":7},false,false,false,false,false,false,false,false,false,{"$nulls":11},false,null,null,"",""]
["",{"$nulls":30},true,{"$nulls":5},false,{"$nulls":7},false,false,false,false,false,false,false,false,false,{"$nulls":11},false,null,null,"",""]
["",{"$nulls":30},true,{"$nulls":5},false,{"$nulls":7},false,false,false,false,false,false,false,false,false,{"$nulls":11},false,null,null,"",""]
["",{"$nulls":30},true,{"$nulls":5},false,{"$nulls":7},false,false,false,false,false,false,false,false,false,{"$nulls":11},false,null,null,"",""]
["",{"$nulls":30},true,{"$nulls":5},false,{"$nulls":7},false,false,false,false,false,false,false,false,false,{"$nulls":11},false,null,null,"",""]
["",{"$nulls":30},true,{"$nulls":5},false,{"$nulls":7},false,false,false,false,false,false,false,false,false,{"$nulls":11},false,null,null,"",""]
["",{"$nulls":30},true,{"$nulls":5},false,{"$nulls":7},false,false,false,false,false,false,false,false,false,{"$nulls":11},false,null,null,"",""]
["",{"$nulls":30},true,{"$nulls":5},false,{"$nulls":7},false,false,false,false,false,false,false,false,false,{"$nulls":11},false,null,null,"",""]
["",{"$nulls":30},true,{"$nulls":5},false,{"$nulls":7},false,false,false,false,false,false,false,false,false,{"$nulls":11},false,null,null,"",""]
["",{"$nulls":30},true,{"$nulls":5},false,{"$nulls":7},false,false,false,false,false,false,false,false,false,{"$nulls":11},false,null,null,"",""]
["",{"$nulls":30},true,{"$nulls":5},false,{"$nulls":7},false,false,false,false,false,false,false,false,false,{"$nulls":11},false,null,null,"",""]
["",{"$nulls":30},true,{"$nulls":5},false,{"$nulls":7},false,false,false,false,false,false,false,false,false,{"$nulls":11},false,null,null,"",""]
["",{"$nulls":30},true,{"$nulls":5},false,{"$nulls":7},false,false,false,false,false,false,false,false,false,{"$nulls":11},false,null,null,"",""]
["",{"$nulls":30},true,{"$nulls":5},false,{"$nulls":7},false,false,false,false,false,false,false,false,false,{"$nulls":11},false,null,null,"",""]
["",{"$nulls":30},true,{"$nulls":5},false,{"$nulls":7},false,false,false,false,false,false,false,false,false,{"$nulls":11},false,null,null,"",""]
["",{"$nulls":30},true,{"$nulls":5},false,{"$nulls":7},false,false,false,false,false,false,false,false,false,{"$nulls":11},false,null,null,"",""]
["",{"$nulls":30},true,{"$nulls":5},false,{"$nulls":7},false,false,false,false,false,false,false,false,false,{"$nulls":11},false,null,null,"",""]
["",{"$nulls":30},true,{"$nulls":5},false,{"$nulls":7},false,false,false,false,false,false,false,false,false,{"$nulls":11},false,null,null,"",""]
["",{"$nulls":30},true,{"$nulls":5},false,{"$nulls":7},false,false,false,false,false,false,false,false,false,{"$nulls":11},false,null,null,"",""]
["",{"$nulls":30},true,{"$nulls":5},false,{"$nulls":7},false,false,false,false,false,false,false,false,false,{"$nulls":11},false,null,null,"",""]
["",{"$nulls":30},true,{"$nulls":5},false,{"$nulls":7},false,false,false,false,false,false,false,false,false,{"$nulls":11},false,null,null,"",""]
["",{"$nulls":30},true,{"$nulls":5},false,{"$nulls":7},false,false,false,false,false,false,false,false,false,{"$nulls":11},false,null,null,"",""]
["",{"$nulls":30},true,{"$nulls":5},false,{"$nulls":7},false,false,false,false,false,false,false,false,false,{"$nulls":11},false,null,null,"",""]
["",{"$nulls":30},true,{"$nulls":5},false,{"$nulls":7},false,false,false,false,false,false,false,false,false,{"$nulls":11},false,null,null,"",""]
["",{"$nulls":30},true,{"$nulls":5},false,{"$nulls":7},false,false,false,false,false,false,false,false,false,{"$nulls":11},false,null,null,"",""]
["",{"$nulls":30},true,{"$nulls":5},false,{"$nulls":7},false,false,false,false,false,false,false,false,false,{"$nulls":11},false,null,null,"",""]
["",{"$nulls":30},true,{"$nulls":5},false,{"$nulls":7},false,false,false,false,false,false,false,false,false,{"$nulls":11},false,null,null,"",""]
["",{"$nulls":30},true,{"$nulls":5},false,{"$nulls":7},false,false,false,false,false,false,false,false,false,{"$nulls":11},false,null,null,"",""]
["",{"$nulls":30},true,{"$nulls":5},false,{"$nulls":7},false,false,false,false,false,false,false,false,false,{"$nulls":11},false,null,null,"",""]
["",{"$nulls":30},true,{"$nulls":5},false,{"$nulls":7},false,false,false,false,false,false,false,false,false,{"$nulls":11},false,null,null,"",""]
["",{"$nulls":30},true,{"$nulls":5},false,{"$nulls":7},false,false,false,false,false,false,false,false,false,{"$nulls":11},false,null,null,"",""]
["",{"$nulls":30},true,{"$nulls":5},false,{"$nulls":7},false,false,false,false,false,false,false,false,false,{"$nulls":11},false,null,null,"",""]
["",{"$nulls":30},true,{"$nulls":5},false,{"$nulls":7},false,false,false,false,false,false,false,false,false,{"$nulls":11},false,null,null,"",""]
["",{"$nulls":30},true,{"$nulls":5},false,{"$nulls":7},false,false,false,false,false,false,false,false,false,{"$nulls":11},false,null,null,"",""]
["",{"$nulls":30},true,{"$nulls":5},false,{"$nulls":7},false,false,false,false,false,false,false,false,false,{"$nulls":11},false,null,null,"",""]
["",{"$nulls":30},true,{"$nulls":5},false,{"$nulls":7},false,false,false,false,false,false,false,false,false,{"$nulls":11},false,null,null,"",""]
["",{"$nulls":30},true,{"$nulls":5},false,{"$nulls":7},false,false,false,false,false,false,false,false,false,{"$nulls":11},false,null,null,"",""]
["",{"$nulls":30},true,{"$nulls":5},false,{"$nulls":7},false,false,false,false,false,false,false,false,false,{"$nulls":11},false,null,null,"",""]
["",{"$nulls":30},true,{"$nulls":5},false,{"$nulls":7},false,false,false,false,false,false,false,false,false,{"$nulls":11},false,null,null,"",""]
["",{"$nulls":30},true,{"$nulls":5},false,{"$nulls":7},false,false,false,false,false,false,false,false,false,{"$nulls":11},false,null,null,"",""]
["",{"$nulls":30},true,{"$nulls":5},false,{"$nulls":7},false,false,false,false,false,false,false,false,false,{"$nulls":11},false,null,null,"",""]
["",{"$nulls":30},true,{"$nulls":5},false,{"$nulls":7},false,false,false,false,false,false,false,false,false,{"$nulls":11},false,null,null,"",""]
["",{"$nulls":30},true,{"$nulls":5},false,{"$nulls":7},false,false,false,false,false,false,false,false,false,{"$nulls":11},false,null,null,"",""]
["",{"$nulls":30},true,{"$nulls":5},false,{"$nulls":7},false,false,false,false,false,false,false,false,false,{"$nulls":11},false,null,null,"",""]
["",{"$nulls":30},true,{"$nulls":5},false,{"$nulls":7},false,false,false,false,false,false,false,false,false,{"$nulls":11},false,null,null,"",""]
["",{"$nulls":30},true,{"$nulls":5},false,{"$nulls":7},false,false,false,false,false,false,false,false,false,{"$nulls":11},false,null,null,"",""]
["",{"$nulls":30},true,{"$nulls":5},false,{"$nulls":7},false,false,false,false,false,false,false,false,false,{"$nulls":11},false,null,null,"",""]
["",{"$nulls":30},true,{"$nulls":5},false,{"$nulls":7},false,false,false,false,false,false,false,false,false,{"$nulls":11},false,null,null,"",""]
["",{"$nulls":30},true,{"$nulls":5},false,{"$nulls":7},false,false,false,false,false,false,false,false,false,{"$nulls":11},false,null,null,"",""]
["",{"$nulls":30},true,{"$nulls":5},false,{"$nulls":7},false,false,false,false,false,false,false,false,false,{"$nulls":11},false,null,null,"",""]
["",{"$nulls":30},true,{"$nulls":5},false,{"$nulls":7},false,false,false,false,false,false,false,false,false,{"$nulls":11},false,null,null,"",""]
["",{"$nulls":30},true,{"$nulls":5},false,{"$nulls":7},false,false,false,false,false,false,false,false,false,{"$nulls":11},false,null,null,"",""]
["",{"$nulls":30},true,{"$nulls":5},false,{"$nulls":7},false,false,false,false,false,false,false,false,false,{"$nulls":11},false,null,null,"",""]
["",{"$nulls":30},true,{"$nulls":5},false,{"$nulls":7},false,false,false,false,false,false,false,false,false,{"$nulls":11},false,null,null,"",""]
["",{"$nulls":30},true,{"$nulls":5},false,{"$nulls":7},false,false,false,false,false,false,false,false,false,{"$nulls":11},false,null,null,"",""]
["",{"$nulls":30},true,{"$nulls":5},false,{"$nulls":7},false,false,false,false,false,false,false,false,false,{"$nulls":11},false,null,null,"",""]
["",{"$nulls":30},true,{"$nulls":5},false,{"$nulls":7},false,false,false,false,false,false,false,false,false,{"$nulls":11},false,null,null,"",""]
["",{"$nulls":30},true,{"$nulls":5},false,{"$nulls":7},false,false,false,false,false,false,false,false,false,{"$nulls":11},false,null,null,"",""]
["",{"$nulls":30},true,{"$nulls":5},false,{"$nulls":7},false,false,false,false,false,false,false,false,false,{"$nulls":11},false,null,null,"",""]
["",{"$nulls":30},true,{"$nulls":5},false,{"$nulls":7},false,false,false,false,false,false,false,false,false,{"$nulls":11},false,null,null,"",""]
["",{"$nulls":30},true,{"$nulls":5},false,{"$nulls":7},false,false,false,false,false,false,false,false,false,{"$nulls":11},false,null,null,"",""]
[{"$f":"IF(TRIM(B387)=\"\",\"\",TRIM(CONCATENATE(B387,\": \",TRIM(D387&\" \"&C387),O387)))","v":""},{"$nulls":30},true,{"$nulls":5},false,{"$nulls":7},false,false,false,false,false,false,false,false,false,{"$nulls":11},false,null,null,{"$f":"IF(AL387,A387,\"\")","v":""},{"$f":"IF(OR(TRIM(AP387)=\"\", AP387=\"Not Joint Holding\"),\"\",A387)","v":""}]
["",{"$nulls":30},true,{"$nulls":5},false,{"$nulls":7},false,false,false,false,false,false,false,false,false,{"$nulls":11},false,null,null,"",""]
["",{"$nulls":30},true,{"$nulls":5},false,{"$nulls":7},false,false,false,false,false,false,false,false,false,{"$nulls":11},false,null,null,"",""]
["",{"$nulls":30},true,{"$nulls":5},false,{"$nulls":7},false,false,false,false,false,false,false,false,false,{"$nulls":11},false,null,null,"",""]
["",{"$nulls":30},true,{"$nulls":5},false,{"$nulls":7},false,false,false,false,false,false,false,false,false,{"$nulls":11},false,null,null,"",""]
["",{"$nulls":30},true,{"$nulls":5},false,{"$nulls":7},false,false,false,false,false,false,false,false,false,{"$nulls":11},false,null,null,"",""]
["",{"$nulls":30},true,{"$nulls":5},false,{"$nulls":7},false,false,false,false,false,false,false,false,false,{"$nulls":11},false,null,null,"",""]
["",{"$nulls":30},true,{"$nulls":5},false,{"$nulls":7},false,false,false,false,false,false,false,false,false,{"$nulls":11},false,null,null,"",""]
["",{"$nulls":30},true,{"$nulls":5},false,{"$nulls":7},false,false,false,false,false,false,false,false,false,{"$nulls":11},false,null,null,"",""]
["",{"$nulls":30},true,{"$nulls":5},false,{"$nulls":7},false,false,false,false,false,false,false,false,false,{"$nulls":11},false,null,null,"",""]
["",{"$nulls":30},true,{"$nulls":5},false,{"$nulls":7},false,false,false,false,false,false,false,false,false,{"$nulls":11},false,null,null,"",""]
["",{"$nulls":30},true,{"$nulls":5},false,{"$nulls":7},false,false,false,false,false,false,false,false,false,{"$nulls":11},false,null,null,"",""]
["",{"$nulls":30},true,{"$nulls":5},false,{"$nulls":7},false,false,false,false,false,false,false,false,false,{"$nulls":11},false,null,null,"",""]
["",{"$nulls":30},true,{"$nulls":5},false,{"$nulls":7},false,false,false,false,false,false,false,false,false,{"$nulls":11},false,null,null,"",""]
["",{"$nulls":30},true,{"$nulls":5},false,{"$nulls":7},false,false,false,false,false,false,false,false,false,{"$nulls":11},false,null,null,"",""]
["",{"$nulls":30},true,{"$nulls":5},false,{"$nulls":7},false,false,false,false,false,false,false,false,false,{"$nulls":11},false,null,null,"",""]
["",{"$nulls":30},true,{"$nulls":5},false,{"$nulls":7},false,false,false,false,false,false,false,false,false,{"$nulls":11},false,null,null,"",""]
["",{"$nulls":30},true,{"$nulls":5},false,{"$nulls":7},false,false,false,false,false,false,false,false,false,{"$nulls":11},false,null,null,"",""]
["",{"$nulls":30},true,{"$nulls":5},false,{"$nulls":7},false,false,false,false,false,false,false,false,false,{"$nulls":11},false,null,null,"",""]
["",{"$nulls":30},true,{"$nulls":5},false,{"$nulls":7},false,false,false,false,false,false,false,false,false,{"$nulls":11},false,null,null,"",""]
["",{"$nulls":30},true,{"$nulls":5},false,{"$nulls":7},false,false,false,false,false,false,false,false,false,{"$nulls":11},false,null,null,"",""]
["",{"$nulls":30},true,{"$nulls":5},false,{"$nulls":7},false,false,false,false,false,false,false,false,false,{"$nulls":11},false,null,null,"",""]
["",{"$nulls":30},true,{"$nulls":5},false,{"$nulls":7},false,false,false,false,false,false,false,false,false,{"$nulls":11},false,null,null,"",""]
["",{"$nulls":30},true,{"$nulls":5},false,{"$nulls":7},false,false,false,false,false,false,false,false,false,{"$nulls":11},false,null,null,"",""]
["",{"$nulls":30},true,{"$nulls":5},false,{"$nulls":7},false,false,false,false,false,false,false,false,false,{"$nulls":11},false,null,null,"",""]
["",{"$nulls":30},true,{"$nulls":5},false,{"$nulls":7},false,false,false,false,false,false,false,false,false,{"$nulls":11},false,null,null,"",""]
["",{"$nulls":30},true,{"$nulls":5},false,{"$nulls":7},false,false,false,false,false,false,false,false,false,{"$nulls":11},false,null,null,"",""]
["",{"$nulls":30},true,{"$nulls":5},false,{"$nulls":7},false,false,false,false,false,false,false,false,false,{"$nulls":11},false,null,null,"",""]
["",{"$nulls":30},true,{"$nulls":5},false,{"$nulls":7},false,false,false,false,false,false,false,false,false,{"$nulls":11},false,null,null,"",""]
["",{"$nulls":30},true,{"$nulls":5},false,{"$nulls":7},false,false,false,false,false,false,false,false,false,{"$nulls":11},false,null,null,"",""]
["",{"$nulls":30},true,{"$nulls":5},false,{"$nulls":7},false,false,false,false,false,false,false,false,false,{"$nulls":11},false,null,null,"",""]
["",{"$nulls":30},true,{"$nulls":5},false,{"$nulls":7},false,false,false,false,false,false,false,false,false,{"$nulls":11},false,null,null,"",""]
["",{"$nulls":30},true,{"$nulls":5},false,{"$nulls":7},false,false,false,false,false,false,false,false,false,{"$nulls":11},false,null,null,"",""]
["",{"$nulls":30},true,{"$nulls":5},false,{"$nulls":7},false,false,false,false,false,false,false,false,false,{"$nulls":11},false,null,null,"",""]
["",{"$nulls":30},true,{"$nulls":5},false,{"$nulls":7},false,false,false,false,false,false,false,false,false,{"$nulls":11},false,null,null,"",""]
["",{"$nulls":30},true,{"$nulls":5},false,{"$nulls":7},false,false,false,false,false,false,false,false,false,{"$nulls":11},false,null,null,"",""]
["",{"$nulls":30},true,{"$nulls":5},false,{"$nulls":7},false,false,false,false,false,false,false,false,false,{"$nulls":11},false,null,null,"",""]
["",{"$nulls":30},true,{"$nulls":5},false,{"$nulls":7},false,false,false,false,false,false,false,false,false,{"$nulls":11},false,null,null,"",""]
["",{"$nulls":30},true,{"$nulls":5},false,{"$nulls":7},false,false,false,false,false,false,false,false,false,{"$nulls":11},false,null,null,"",""]
["",{"$nulls":30},true,{"$nulls":5},false,{"$nulls":7},false,false,false,false,false,false,false,false,false,{"$nulls":11},false,null,null,"",""]
["",{"$nulls":30},true,{"$nulls":5},false,{"$nulls":7},false,false,false,false,false,false,false,false,false,{"$nulls":11},false,null,null,"",""]
["",{"$nulls":30},true,{"$nulls":5},false,{"$nulls":7},false,false,false,false,false,false,false,false,false,{"$nulls":11},false,null,null,"",""]
["",{"$nulls":30},true,{"$nulls":5},false,{"$nulls":7},false,false,false,false,false,false,false,false,false,{"$nulls":11},false,null,null,"",""]
["",{"$nulls":30},true,{"$nulls":5},false,{"$nulls":7},false,false,false,false,false,false,false,false,false,{"$nulls":11},false,null,null,"",""]
["",{"$nulls":30},true,{"$nulls":5},false,{"$nulls":7},false,false,false,false,false,false,false,false,false,{"$nulls":11},false,null,null,"",""]
["",{"$nulls":30},true,{"$nulls":5},false,{"$nulls":7},false,false,false,false,false,false,false,false,false,{"$nulls":11},false,null,null,"",""]
["",{"$nulls":30},true,{"$nulls":5},false,{"$nulls":7},false,false,false,false,false,false,false,false,false,{"$nulls":11},false,null,null,"",""]
["",{"$nulls":30},true,{"$nulls":5},false,{"$nulls":7},false,false,false,false,false,false,false,false,false,{"$nulls":11},false,null,null,"",""]
["",{"$nulls":30},true,{"$nulls":5},false,{"$nulls":7},false,false,false,false,false,false,false,false,false,{"$nulls":11},false,null,null,"",""]
["",{"$nulls":30},true,{"$nulls":5},false,{"$nulls":7},false,false,false,false,false,false,false,false,false,{"$nulls":11},false,null,null,"",""]
["",{"$nulls":30},true,{"$nulls":5},false,{"$nulls":7},false,false,false,false,false,false,false,false,false,{"$nulls":11},false,null,null,"",""]
["",{"$nulls":30},true,{"$nulls":5},false,{"$nulls":7},false,false,false,false,false,false,false,false,false,{"$nulls":11},false,null,null,"",""]
["",{"$nulls":30},true,{"$nulls":5},false,{"$nulls":7},false,false,false,false,false,false,false,false,false,{"$nulls":11},false,null,null,"",""]
["",{"$nulls":30},true,{"$nulls":5},false,{"$nulls":7},false,false,false,false,false,false,false,false,false,{"$nulls":11},false,null,null,"",""]
["",{"$nulls":30},true,{"$nulls":5},false,{"$nulls":7},false,false,false,false,false,false,false,false,false,{"$nulls":11},false,null,null,"",""]
["",{"$nulls":30},true,{"$nulls":5},false,{"$nulls":7},false,false,false,false,false,false,false,false,false,{"$nulls":11},false,null,null,"",""]
["",{"$nulls":30},true,{"$nulls":5},false,{"$nulls":7},false,false,false,false,false,false,false,false,false,{"$nulls":11},false,null,null,"",""]
["",{"$nulls":30},true,{"$nulls":5},false,{"$nulls":7},false,false,false,false,false,false,false,false,false,{"$nulls":11},false,null,null,"",""]
["",{"$nulls":30},true,{"$nulls":5},false,{"$nulls":7},false,false,false,false,false,false,false,false,false,{"$nulls":11},false,null,null,"",""]
["",{"$nulls":30},true,{"$nulls":5},false,{"$nulls":7},false,false,false,false,false,false,false,false,false,{"$nulls":11},false,null,null,"",""]
["",{"$nulls":30},true,{"$nulls":5},false,{"$nulls":7},false,false,false,false,false,false,false,false,false,{"$nulls":11},false,null,null,"",""]
["",{"$nulls":30},true,{"$nulls":5},false,{"$nulls":7},false,false,false,false,false,false,false,false,false,{"$nulls":11},false,null,null,"",""]
["",{"$nulls":30},true,{"$nulls":5},false,{"$nulls":7},false,false,false,false,false,false,false,false,false,{"$nulls":11},false,null,null,"",""]
["",{"$nulls":30},true,{"$nulls":5},false,{"$nulls":7},false,false,false,false,false,false,false,false,false,{"$nulls":11},false,null,null,"",""]
[{"$f":"IF(TRIM(B451)=\"\",\"\",TRIM(CONCATENATE(B451,\": \",TRIM(D451&\" \"&C451),O451)))","v":""},{"$nulls":30},true,{"$nulls":5},false,{"$nulls":7},false,false,false,false,false,false,false,false,false,{"$nulls":11},false,null,null,{"$f":"IF(AL451,A451,\"\")","v":""},{"$f":"IF(OR(TRIM(AP451)=\"\", AP451=\"Not Joint Holding\"),\"\",A451)","v":""}]
["",{"$nulls":30},true,{"$nulls":5},false,{"$nulls":7},false,false,false,false,false,false,false,false,false,{"$nulls":11},false,null,null,"",""]
["",{"$nulls":30},true,{"$nulls":5},false,{"$nulls":7},false,false,false,false,false,false,false,false,false,{"$nulls":11},false,null,null,"",""]
["",{"$nulls":30},true,{"$nulls":5},false,{"$nulls":7},false,false,false,false,false,false,false,false,false,{"$nulls":11},false,null,null,"",""]
["",{"$nulls":30},true,{"$nulls":5},false,{"$nulls":7},false,false,false,false,false,false,false,false,false,{"$nulls":11},false,null,null,"",""]
["",{"$nulls":30},true,{"$nulls":5},false,{"$nulls":7},false,false,false,false,false,false,false,false,false,{"$nulls":11},false,null,null,"",""]
["",{"$nulls":30},true,{"$nulls":5},false,{"$nulls":7},false,false,false,false,false,false,false,false,false,{"$nulls":11},false,null,null,"",""]
["",{"$nulls":30},true,{"$nulls":5},false,{"$nulls":7},false,false,false,false,false,false,false,false,false,{"$nulls":11},false,null,null,"",""]
["",{"$nulls":30},true,{"$nulls":5},false,{"$nulls":7},false,false,false,false,false,false,false,false,false,{"$nulls":11},false,null,null,"",""]
["",{"$nulls":30},true,{"$nulls":5},false,{"$nulls":7},false,false,false,false,false,false,false,false,false,{"$nulls":11},false,null,null,"",""]
["",{"$nulls":30},true,{"$nulls":5},false,{"$nulls":7},false,false,false,false,false,false,false,false,false,{"$nulls":11},false,null,null,"",""]
["",{"$nulls":30},true,{"$nulls":5},false,{"$nulls":7},false,false,false,false,false,false,false,false,false,{"$nulls":11},false,null,null,"",""]
["",{"$nulls":30},true,{"$nulls":5},false,{"$nulls":7},false,false,false,false,false,false,false,false,false,{"$nulls":11},false,null,null,"",""]
["",{"$nulls":30},true,{"$nulls":5},false,{"$nulls":7},false,false,false,false,false,false,false,false,false,{"$nulls":11},false,null,null,"",""]
["",{"$nulls":30},true,{"$nulls":5},false,{"$nulls":7},false,false,false,false,false,false,false,false,false,{"$nulls":11},false,null,null,"",""]
["",{"$nulls":30},true,{"$nulls":5},false,{"$nulls":7},false,false,false,false,false,false,false,false,false,{"$nulls":11},false,null,null,"",""]
["",{"$nulls":30},true,{"$nulls":5},false,{"$nulls":7},false,false,false,false,false,false,false,false,false,{"$nulls":11},false,null,null,"",""]
["",{"$nulls":30},true,{"$nulls":5},false,{"$nulls":7},false,false,false,false,false,false,false,false,false,{"$nulls":11},false,null,null,"",""]
["",{"$nulls":30},true,{"$nulls":5},false,{"$nulls":7},false,false,false,false,false,false,false,false,false,{"$nulls":11},false,null,null,"",""]
["",{"$nulls":30},true,{"$nulls":5},false,{"$nulls":7},false,false,false,false,false,false,false,false,false,{"$nulls":11},false,null,null,"",""]
["",{"$nulls":30},true,{"$nulls":5},false,{"$nulls":7},false,false,false,false,false,false,false,false,false,{"$nulls":11},false,null,null,"",""]
["",{"$nulls":30},true,{"$nulls":5},false,{"$nulls":7},false,false,false,false,false,false,false,false,false,{"$nulls":11},false,null,null,"",""]
["",{"$nulls":30},true,{"$nulls":5},false,{"$nulls":7},false,false,false,false,false,false,false,false,false,{"$nulls":11},false,null,null,"",""]
["",{"$nulls":30},true,{"$nulls":5},false,{"$nulls":7},false,false,false,false,false,false,false,false,false,{"$nulls":11},false,null,null,"",""]
["",{"$nulls":30},true,{"$nulls":5},false,{"$nulls":7},false,false,false,false,false,false,false,false,false,{"$nulls":11},false,null,null,"",""]
["",{"$nulls":30},true,{"$nulls":5},false,{"$nulls":7},false,false,false,false,false,false,false,false,false,{"$nulls":11},false,null,null,"",""]
["",{"$nulls":30},true,{"$nulls":5},false,{"$nulls":7},false,false,false,false,false,false,false,false,false,{"$nulls":11},false,null,null,"",""]
["",{"$nulls":30},true,{"$nulls":5},false,{"$nulls":7},false,false,false,false,false,false,false,false,false,{"$nulls":11},false,null,null,"",""]
["",{"$nulls":30},true,{"$nulls":5},false,{"$nulls":7},false,false,false,false,false,false,false,false,false,{"$nulls":11},false,null,null,"",""]
["",{"$nulls":30},true,{"$nulls":5},false,{"$nulls":7},false,false,false,false,false,false,false,false,false,{"$nulls":11},false,null,null,"",""]
["",{"$nulls":30},true,{"$nulls":5},false,{"$nulls":7},false,false,false,false,false,false,false,false,false,{"$nulls":11},false,null,null,"",""]
["",{"$nulls":30},true,{"$nulls":5},false,{"$nulls":7},false,false,false,false,false,false,false,false,false,{"$nulls":11},false,null,null,"",""]
["",{"$nulls":30},true,{"$nulls":5},false,{"$nulls":7},false,false,false,false,false,false,false,false,false,{"$nulls":11},false,null,null,"",""]
["",{"$nulls":30},true,{"$nulls":5},false,{"$nulls":7},false,false,false,false,false,false,false,false,false,{"$nulls":11},false,null,null,"",""]
["",{"$nulls":30},true,{"$nulls":5},false,{"$nulls":7},false,false,false,false,false,false,false,false,false,{"$nulls":11},false,null,null,"",""]
["",{"$nulls":30},true,{"$nulls":5},false,{"$nulls":7},false,false,false,false,false,false,false,false,false,{"$nulls":11},false,null,null,"",""]
["",{"$nulls":30},true,{"$nulls":5},false,{"$nulls":7},false,false,false,false,false,false,false,false,false,{"$nulls":11},false,null,null,"",""]
["",{"$nulls":30},true,{"$nulls":5},false,{"$nulls":7},false,false,false,false,false,false,false,false,false,{"$nulls":11},false,null,null,"",""]
["",{"$nulls":30},true,{"$nulls":5},false,{"$nulls":7},false,false,false,false,false,false,false,false,false,{"$nulls":11},false,null,null,"",""]
["",{"$nulls":30},true,{"$nulls":5},false,{"$nulls":7},false,false,false,false,false,false,false,false,false,{"$nulls":11},false,null,null,"",""]
["",{"$nulls":30},true,{"$nulls":5},false,{"$nulls":7},false,false,false,false,false,false,false,false,false,{"$nulls":11},false,null,null,"",""]
["",{"$nulls":30},true,{"$nulls":5},false,{"$nulls":7},false,false,false,false,false,false,false,false,false,{"$nulls":11},false,null,null,"",""]
["",{"$nulls":30},true,{"$nulls":5},false,{"$nulls":7},false,false,false,false,false,false,false,false,false,{"$nulls":11},false,null,null,"",""]
["",{"$nulls":30},true,{"$nulls":5},false,{"$nulls":7},false,false,false,false,false,false,false,false,false,{"$nulls":11},false,null,null,"",""]
["",{"$nulls":30},true,{"$nulls":5},false,{"$nulls":7},false,false,false,false,false,false,false,false,false,{"$nulls":11},false,null,null,"",""]
["",{"$nulls":30},true,{"$nulls":5},false,{"$nulls":7},false,false,false,false,false,false,false,false,false,{"$nulls":11},false,null,null,"",""]
["",{"$nulls":30},true,{"$nulls":5},false,{"$nulls":7},false,false,false,false,false,false,false,false,false,{"$nulls":11},false,null,null,"",""]
["",{"$nulls":30},true,{"$nulls":5},false,{"$nulls":7},false,false,false,false,false,false,false,false,false,{"$nulls":11},false,null,null,"",""]
["",{"$nulls":30},true,{"$nulls":5},false,{"$nulls":7},false,false,false,false,false,false,false,false,false,{"$nulls":11},false,null,null,"",""]
["",{"$nulls":30},true,{"$nulls":5},false,{"$nulls":7},false,false,false,false,false,false,false,false,false,{"$nulls":11},false,null,null,"",""]
["",{"$nulls":30},true,{"$nulls":5},false,{"$nulls":7},false,false,false,false,false,false,false,false,false,{"$nulls":11},false,null,null,"",""]
["",{"$nulls":30},true,{"$nulls":5},false,{"$nulls":7},false,false,false,false,false,false,false,false,false,{"$nulls":11},false,null,null,"",""]
["",{"$nulls":30},true,{"$nulls":5},false,{"$nulls":7},false,false,false,false,false,false,false,false,false,{"$nulls":11},false,null,null,"",""]
["",{"$nulls":30},true,{"$nulls":5},false,{"$nulls":7},false,false,false,false,false,false,false,false,false,{"$nulls":11},false,null,null,"",""]
["",{"$nulls":30},true,{"$nulls":5},false,{"$nulls":7},false,false,false,false,false,false,false,false,false,{"$nulls":11},false,null,null,"",""]
["",{"$nulls":30},true,{"$nulls":5},false,{"$nulls":7},false,false,false,false,false,false,false,false,false,{"$nulls":11},false,null,null,"",""]
["",{"$nulls":30},true,{"$nulls":5},false,{"$nulls":7},false,false,false,false,false,false,false,false,false,{"$nulls":11},false,null,null,"",""]
["",{"$nulls":30},true,{"$nulls":5},false,{"$nulls":7},false,false,false,false,false,false,false,false,false,{"$nulls":11},false,null,null,"",""]
["",{"$nulls":30},true,{"$nulls":5},false,{"$nulls":7},false,false,false,false,false,false,false,false,false,{"$nulls":11},false,null,null,"",""]
["",{"$nulls":30},true,{"$nulls":5},false,{"$nulls":7},false,false,false,false,false,false,false,false,false,{"$nulls":11},false,null,null,"",""]
["",{"$nulls":30},true,{"$nulls":5},false,{"$nulls":7},false,false,false,false,false,false,false,false,false,{"$nulls":11},false,null,null,"",""]
["",{"$nulls":30},true,{"$nulls":5},false,{"$nulls":7},false,false,false,false,false,false,false,false,false,{"$nulls":11},false,null,null,"",""]
["",{"$nulls":30},true,{"$nulls":5},false,{"$nulls":7},false,false,false,false,false,false,false,false,false,{"$nulls":11},false,null,null,"",""]
["",{"$nulls":30},true,{"$nulls":5},false,{"$nulls":7},false,false,false,false,false,false,false,false,false,{"$nulls":11},false,null,null,"",""]
[{"$f":"IF(TRIM(B515)=\"\",\"\",TRIM(CONCATENATE(B515,\": \",TRIM(D515&\" \"&C515),O515)))","v":""},{"$nulls":30},true,{"$nulls":5},false,{"$nulls":7},false,false,false,false,false,false,false,false,false,{"$nulls":11},false,null,null,{"$f":"IF(AL515,A515,\"\")","v":""},{"$f":"IF(OR(TRIM(AP515)=\"\", AP515=\"Not Joint Holding\"),\"\",A515)","v":""}]
["",{"$nulls":30},true,{"$nulls":5},false,{"$nulls":7},false,false,false,false,false,false,false,false,false,{"$nulls":11},false,null,null,"",""]
["",{"$nulls":30},true,{"$nulls":5},false,{"$nulls":7},false,false,false,false,false,false,false,false,false,{"$nulls":11},false,null,null,"",""]
["",{"$nulls":30},true,{"$nulls":5},false,{"$nulls":7},false,false,false,false,false,false,false,false,false,{"$nulls":11},false,null,null,"",""]
["",{"$nulls":30},true,{"$nulls":5},false,{"$nulls":7},false,false,false,false,false,false,false,false,false,{"$nulls":11},false,null,null,"",""]
["",{"$nulls":30},true,{"$nulls":5},false,{"$nulls":7},false,false,false,false,false,false,false,false,false,{"$nulls":11},false,null,null,"",""]
["",{"$nulls":30},true,{"$nulls":5},false,{"$nulls":7},false,false,false,false,false,false,false,false,false,{"$nulls":11},false,null,null,"",""]
["",{"$nulls":30},true,{"$nulls":5},false,{"$nulls":7},false,false,false,false,false,false,false,false,false,{"$nulls":11},false,null,null,"",""]
["",{"$nulls":30},true,{"$nulls":5},false,{"$nulls":7},false,false,false,false,false,false,false,false,false,{"$nulls":11},false,null,null,"",""]
["",{"$nulls":30},true,{"$nulls":5},false,{"$nulls":7},false,false,false,false,false,false,false,false,false,{"$nulls":11},false,null,null,"",""]
["",{"$nulls":30},true,{"$nulls":5},false,{"$nulls":7},false,false,false,false,false,false,false,false,false,{"$nulls":11},false,null,null,"",""]
["",{"$nulls":30},true,{"$nulls":5},false,{"$nulls":7},false,false,false,false,false,false,false,false,false,{"$nulls":11},false,null,null,"",""]
["",{"$nulls":30},true,{"$nulls":5},false,{"$nulls":7},false,false,false,false,false,false,false,false,false,{"$nulls":11},false,null,null,"",""]
["",{"$nulls":30},true,{"$nulls":5},false,{"$nulls":7},false,false,false,false,false,false,false,false,false,{"$nulls":11},false,null,null,"",""]
["",{"$nulls":30},true,{"$nulls":5},false,{"$nulls":7},false,false,false,false,false,false,false,false,false,{"$nulls":11},false,null,null,"",""]
["",{"$nulls":30},true,{"$nulls":5},false,{"$nulls":7},false,false,false,false,false,false,false,false,false,{"$nulls":11},false,null,null,"",""]
["",{"$nulls":30},true,{"$nulls":5},false,{"$nulls":7},false,false,false,false,false,false,false,false,false,{"$nulls":11},false,null,null,"",""]
["",{"$nulls":30},true,{"$nulls":5},false,{"$nulls":7},false,false,false,false,false,false,false,false,false,{"$nulls":11},false,null,null,"",""]
["",{"$nulls":30},true,{"$nulls":5},false,{"$nulls":7},false,false,false,false,false,false,false,false,false,{"$nulls":11},false,null,null,"",""]
["",{"$nulls":30},true,{"$nulls":5},false,{"$nulls":7},false,false,false,false,false,false,false,false,false,{"$nulls":11},false,null,null,"",""]
["",{"$nulls":30},true,{"$nulls":5},false,{"$nulls":7},false,false,false,false,false,false,false,false,false,{"$nulls":11},false,null,null,"",""]
["",{"$nulls":30},true,{"$nulls":5},false,{"$nulls":7},false,false,false,false,false,false,false,false,false,{"$nulls":11},false,null,null,"",""]
["",{"$nulls":30},true,{"$nulls":5},false,{"$nulls":7},false,false,false,false,false,false,false,false,false,{"$nulls":11},false,null,null,"",""]
["",{"$nulls":30},true,{"$nulls":5},false,{"$nulls":7},false,false,false,false,false,false,false,false,false,{"$nulls":11},false,null,null,"",""]
["",{"$nulls":30},true,{"$nulls":5},false,{"$nulls":7},false,false,false,false,false,false,false,false,false,{"$nulls":11},false,null,null,"",""]
["",{"$nulls":30},true,{"$nulls":5},false,{"$nulls":7},false,false,false,false,false,false,false,false,false,{"$nulls":11},false,null,null,"",""]
["",{"$nulls":30},true,{"$nulls":5},false,{"$nulls":7},false,false,false,false,false,false,false,false,false,{"$nulls":11},false,null,null,"",""]
["",{"$nulls":30},true,{"$nulls":5},false,{"$nulls":7},false,false,false,false,false,false,false,false,false,{"$nulls":11},false,null,null,"",""]
["",{"$nulls":30},true,{"$nulls":5},false,{"$nulls":7},false,false,false,false,false,false,false,false,false,{"$nulls":11},false,null,null,"",""]
["",{"$nulls":30},true,{"$nulls":5},false,{"$nulls":7},false,false,false,false,false,false,false,false,false,{"$nulls":11},false,null,null,"",""]
["",{"$nulls":30},true,{"$nulls":5},false,{"$nulls":7},false,false,false,false,false,false,false,false,false,{"$nulls":11},false,null,null,"",""]
["",{"$nulls":30},true,{"$nulls":5},false,{"$nulls":7},false,false,false,false,false,false,false,false,false,{"$nulls":11},false,null,null,"",""]
["",{"$nulls":30},true,{"$nulls":5},false,{"$nulls":7},false,false,false,false,false,false,false,false,false,{"$nulls":11},false,null,null,"",""]
["",{"$nulls":30},true,{"$nulls":5},false,{"$nulls":7},false,false,false,false,false,false,false,false,false,{"$nulls":11},false,null,null,"",""]
["",{"$nulls":30},true,{"$nulls":5},false,{"$nulls":7},false,false,false,false,false,false,false,false,false,{"$nulls":11},false,null,null,"",""]
["",{"$nulls":30},true,{"$nulls":5},false,{"$nulls":7},false,false,false,false,false,false,false,false,false,{"$nulls":11},false,null,null,"",""]
["",{"$nulls":30},true,{"$nulls":5},false,{"$nulls":7},false,false,false,false,false,false,false,false,false,{"$nulls":11},false,null,null,"",""]
["",{"$nulls":30},true,{"$nulls":5},false,{"$nulls":7},false,false,false,false,false,false,false,false,false,{"$nulls":11},false,null,null,"",""]
["",{"$nulls":30},true,{"$nulls":5},false,{"$nulls":7},false,false,false,false,false,false,false,false,false,{"$nulls":11},false,null,null,"",""]
["",{"$nulls":30},true,{"$nulls":5},false,{"$nulls":7},false,false,false,false,false,false,false,false,false,{"$nulls":11},false,null,null,"",""]
["",{"$nulls":30},true,{"$nulls":5},false,{"$nulls":7},false,false,false,false,false,false,false,false,false,{"$nulls":11},false,null,null,"",""]
["",{"$nulls":30},true,{"$nulls":5},false,{"$nulls":7},false,false,false,false,false,false,false,false,false,{"$nulls":11},false,null,null,"",""]
["",{"$nulls":30},true,{"$nulls":5},false,{"$nulls":7},false,false,false,false,false,false,false,false,false,{"$nulls":11},false,null,null,"",""]
["",{"$nulls":30},true,{"$nulls":5},false,{"$nulls":7},false,false,false,false,false,false,false,false,false,{"$nulls":11},false,null,null,"",""]
["",{"$nulls":30},true,{"$nulls":5},false,{"$nulls":7},false,false,false,false,false,false,false,false,false,{"$nulls":11},false,null,null,"",""]
["",{"$nulls":30},true,{"$nulls":5},false,{"$nulls":7},false,false,false,false,false,false,false,false,false,{"$nulls":11},false,null,null,"",""]
["",{"$nulls":30},true,{"$nulls":5},false,{"$nulls":7},false,false,false,false,false,false,false,false,false,{"$nulls":11},false,null,null,"",""]
["",{"$nulls":30},true,{"$nulls":5},false,{"$nulls":7},false,false,false,false,false,false,false,false,false,{"$nulls":11},false,null,null,"",""]
["",{"$nulls":30},true,{"$nulls":5},false,{"$nulls":7},false,false,false,false,false,false,false,false,false,{"$nulls":11},false,null,null,"",""]
["",{"$nulls":30},true,{"$nulls":5},false,{"$nulls":7},false,false,false,false,false,false,false,false,false,{"$nulls":11},false,null,null,"",""]
["",{"$nulls":30},true,{"$nulls":5},false,{"$nulls":7},false,false,false,false,false,false,false,false,false,{"$nulls":11},false,null,null,"",""]
["",{"$nulls":30},true,{"$nulls":5},false,{"$nulls":7},false,false,false,false,false,false,false,false,false,{"$nulls":11},false,null,null,"",""]
["",{"$nulls":30},true,{"$nulls":5},false,{"$nulls":7},false,false,false,false,false,false,false,false,false,{"$nulls":11},false,null,null,"",""]
["",{"$nulls":30},true,{"$nulls":5},false,{"$nulls":7},false,false,false,false,false,false,false,false,false,{"$nulls":11},false,null,null,"",""]
["",{"$nulls":30},true,{"$nulls":5},false,{"$nulls":7},false,false,false,false,false,false,false,false,false,{"$nulls":11},false,null,null,"",""]
["",{"$nulls":30},true,{"$nulls":5},false,{"$nulls":7},false,false,false,false,false,false,false,false,false,{"$nulls":11},false,null,null,"",""]
["",{"$nulls":30},true,{"$nulls":5},false,{"$nulls":7},false,false,false,false,false,false,false,false,false,{"$nulls":11},false,null,null,"",""]
["",{"$nulls":30},true,{"$nulls":5},false,{"$nulls":7},false,false,false,false,false,false,false,false,false,{"$nulls":11},false,null,null,"",""]
["",{"$nulls":30},true,{"$nulls":5},false,{"$nulls":7},false,false,false,false,false,false,false,false,false,{"$nulls":11},false,null,null,"",""]
["",{"$nulls":30},true,{"$nulls":5},false,{"$nulls":7},false,false,false,false,false,false,false,false,false,{"$nulls":11},false,null,null,"",""]
["",{"$nulls":30},true,{"$nulls":5},false,{"$nulls":7},false,false,false,false,false,false,false,false,false,{"$nulls":11},false,null,null,"",""]
["",{"$nulls":30},true,{"$nulls":5},false,{"$nulls":7},false,false,false,false,false,false,false,false,false,{"$nulls":11},false,null,null,"",""]
["",{"$nulls":30},true,{"$nulls":5},false,{"$nulls":7},false,false,false,false,false,false,false,false,false,{"$nulls":11},false,null,null,"",""]
["",{"$nulls":30},true,{"$nulls":5},false,{"$nulls":7},false,false,false,false,false,false,false,false,false,{"$nulls":11},false,null,null,"",""]
[{"$f":"IF(TRIM(B579)=\"\",\"\",TRIM(CONCATENATE(B579,\": \",TRIM(D579&\" \"&C579),O579)))","v":""},{"$nulls":30},true,{"$nulls":5},false,{"$nulls":7},false,false,false,false,false,false,false,false,false,{"$nulls":11},false,null,null,{"$f":"IF(AL579,A579,\"\")","v":""},{"$f":"IF(OR(TRIM(AP579)=\"\", AP579=\"Not Joint Holding\"),\"\",A579)","v":""}]
["",{"$nulls":30},true,{"$nulls":5},false,{"$nulls":7},false,false,false,false,false,false,false,false,false,{"$nulls":11},false,null,null,"",""]
["",{"$nulls":30},true,{"$nulls":5},false,{"$nulls":7},false,false,false,false,false,false,false,false,false,{"$nulls":11},false,null,null,"",""]
["",{"$nulls":30},true,{"$nulls":5},false,{"$nulls":7},false,false,false,false,false,false,false,false,false,{"$nulls":11},false,null,null,"",""]
["",{"$nulls":30},true,{"$nulls":5},false,{"$nulls":7},false,false,false,false,false,false,false,false,false,{"$nulls":11},false,null,null,"",""]
["",{"$nulls":30},true,{"$nulls":5},false,{"$nulls":7},false,false,false,false,false,false,false,false,false,{"$nulls":11},false,null,null,"",""]
["",{"$nulls":30},true,{"$nulls":5},false,{"$nulls":7},false,false,false,false,false,false,false,false,false,{"$nulls":11},false,null,null,"",""]
["",{"$nulls":30},true,{"$nulls":5},false,{"$nulls":7},false,false,false,false,false,false,false,false,false,{"$nulls":11},false,null,null,"",""]
["",{"$nulls":30},true,{"$nulls":5},false,{"$nulls":7},false,false,false,false,false,false,false,false,false,{"$nulls":11},false,null,null,"",""]
["",{"$nulls":30},true,{"$nulls":5},false,{"$nulls":7},false,false,false,false,false,false,false,false,false,{"$nulls":11},false,null,null,"",""]
["",{"$nulls":30},true,{"$nulls":5},false,{"$nulls":7},false,false,false,false,false,false,false,false,false,{"$nulls":11},false,null,null,"",""]
["",{"$nulls":30},true,{"$nulls":5},false,{"$nulls":7},false,false,false,false,false,false,false,false,false,{"$nulls":11},false,null,null,"",""]
["",{"$nulls":30},true,{"$nulls":5},false,{"$nulls":7},false,false,false,false,false,false,false,false,false,{"$nulls":11},false,null,null,"",""]
["",{"$nulls":30},true,{"$nulls":5},false,{"$nulls":7},false,false,false,false,false,false,false,false,false,{"$nulls":11},false,null,null,"",""]
["",{"$nulls":30},true,{"$nulls":5},false,{"$nulls":7},false,false,false,false,false,false,false,false,false,{"$nulls":11},false,null,null,"",""]
["",{"$nulls":30},true,{"$nulls":5},false,{"$nulls":7},false,false,false,false,false,false,false,false,false,{"$nulls":11},false,null,null,"",""]
["",{"$nulls":30},true,{"$nulls":5},false,{"$nulls":7},false,false,false,false,false,false,false,false,false,{"$nulls":11},false,null,null,"",""]
["",{"$nulls":30},true,{"$nulls":5},false,{"$nulls":7},false,false,false,false,false,false,false,false,false,{"$nulls":11},false,null,null,"",""]
["",{"$nulls":30},true,{"$nulls":5},false,{"$nulls":7},false,false,false,false,false,false,false,false,false,{"$nulls":11},false,null,null,"",""]
["",{"$nulls":30},true,{"$nulls":5},false,{"$nulls":7},false,false,false,false,false,false,false,false,false,{"$nulls":11},false,null,null,"",""]
["",{"$nulls":30},true,{"$nulls":5},false,{"$nulls":7},false,false,false,false,false,false,false,false,false,{"$nulls":11},false,null,null,"",""]
["",{"$nulls":30},true,{"$nulls":5},false,{"$nulls":7},false,false,false,false,false,false,false,false,false,{"$nulls":11},false,null,null,"",""]
["",{"$nulls":30},true,{"$nulls":5},false,{"$nulls":7},false,false,false,false,false,false,false,false,false,{"$nulls":11},false,null,null,"",""]
["",{"$nulls":30},true,{"$nulls":5},false,{"$nulls":7},false,false,false,false,false,false,false,false,false,{"$nulls":11},false,null,null,"",""]
["",{"$nulls":30},true,{"$nulls":5},false,{"$nulls":7},false,false,false,false,false,false,false,false,false,{"$nulls":11},false,null,null,"",""]
["",{"$nulls":30},true,{"$nulls":5},false,{"$nulls":7},false,false,false,false,false,false,false,false,false,{"$nulls":11},false,null,null,"",""]
["",{"$nulls":30},true,{"$nulls":5},false,{"$nulls":7},false,false,false,false,false,false,false,false,false,{"$nulls":11},false,null,null,"",""]
["",{"$nulls":30},true,{"$nulls":5},false,{"$nulls":7},false,false,false,false,false,false,false,false,false,{"$nulls":11},false,null,null,"",""]
["",{"$nulls":30},true,{"$nulls":5},false,{"$nulls":7},false,false,false,false,false,false,false,false,false,{"$nulls":11},false,null,null,"",""]
["",{"$nulls":30},true,{"$nulls":5},false,{"$nulls":7},false,false,false,false,false,false,false,false,false,{"$nulls":11},false,null,null,"",""]
["",{"$nulls":30},true,{"$nulls":5},false,{"$nulls":7},false,false,false,false,false,false,false,false,false,{"$nulls":11},false,null,null,"",""]
["",{"$nulls":30},true,{"$nulls":5},false,{"$nulls":7},false,false,false,false,false,false,false,false,false,{"$nulls":11},false,null,null,"",""]
["",{"$nulls":30},true,{"$nulls":5},false,{"$nulls":7},false,false,false,false,false,false,false,false,false,{"$nulls":11},false,null,null,"",""]
["",{"$nulls":30},true,{"$nulls":5},false,{"$nulls":7},false,false,false,false,false,false,false,false,false,{"$nulls":11},false,null,null,"",""]
["",{"$nulls":30},true,{"$nulls":5},false,{"$nulls":7},false,false,false,false,false,false,false,false,false,{"$nulls":11},false,null,null,"",""]
["",{"$nulls":30},true,{"$nulls":5},false,{"$nulls":7},false,false,false,false,false,false,false,false,false,{"$nulls":11},false,null,null,"",""]
["",{"$nulls":30},true,{"$nulls":5},false,{"$nulls":7},false,false,false,false,false,false,false,false,false,{"$nulls":11},false,null,null,"",""]
["",{"$nulls":30},true,{"$nulls":5},false,{"$nulls":7},false,false,false,false,false,false,false,false,false,{"$nulls":11},false,null,null,"",""]
["",{"$nulls":30},true,{"$nulls":5},false,{"$nulls":7},false,false,false,false,false,false,false,false,false,{"$nulls":11},false,null,null,"",""]
["",{"$nulls":30},true,{"$nulls":5},false,{"$nulls":7},false,false,false,false,false,false,false,false,false,{"$nulls":11},false,null,null,"",""]
["",{"$nulls":30},true,{"$nulls":5},false,{"$nulls":7},false,false,false,false,false,false,false,false,false,{"$nulls":11},false,null,null,"",""]
["",{"$nulls":30},true,{"$nulls":5},false,{"$nulls":7},false,false,false,false,false,false,false,false,false,{"$nulls":11},false,null,null,"",""]
["",{"$nulls":30},true,{"$nulls":5},false,{"$nulls":7},false,false,false,false,false,false,false,false,false,{"$nulls":11},false,null,null,"",""]
["",{"$nulls":30},true,{"$nulls":5},false,{"$nulls":7},false,false,false,false,false,false,false,false,false,{"$nulls":11},false,null,null,"",""]
["",{"$nulls":30},true,{"$nulls":5},false,{"$nulls":7},false,false,false,false,false,false,false,false,false,{"$nulls":11},false,null,null,"",""]
["",{"$nulls":30},true,{"$nulls":5},false,{"$nulls":7},false,false,false,false,false,false,false,false,false,{"$nulls":11},false,null,null,"",""]
["",{"$nulls":30},true,{"$nulls":5},false,{"$nulls":7},false,false,false,false,false,false,false,false,false,{"$nulls":11},false,null,null,"",""]
["",{"$nulls":30},true,{"$nulls":5},false,{"$nulls":7},false,false,false,false,false,false,false,false,false,{"$nulls":11},false,null,null,"",""]
["",{"$nulls":30},true,{"$nulls":5},false,{"$nulls":7},false,false,false,false,false,false,false,false,false,{"$nulls":11},false,null,null,"",""]
["",{"$nulls":30},true,{"$nulls":5},false,{"$nulls":7},false,false,false,false,false,false,false,false,false,{"$nulls":11},false,null,null,"",""]
["",{"$nulls":30},true,{"$nulls":5},false,{"$nulls":7},false,false,false,false,false,false,false,false,false,{"$nulls":11},false,null,null,"",""]
["",{"$nulls":30},true,{"$nulls":5},false,{"$nulls":7},false,false,false,false,false,false,false,false,false,{"$nulls":11},false,null,null,"",""]
["",{"$nulls":30},true,{"$nulls":5},false,{"$nulls":7},false,false,false,false,false,false,false,false,false,{"$nulls":11},false,null,null,"",""]
["",{"$nulls":30},true,{"$nulls":5},false,{"$nulls":7},false,false,false,false,false,false,false,false,false,{"$nulls":11},false,null,null,"",""]
["",{"$nulls":30},true,{"$nulls":5},false,{"$nulls":7},false,false,false,false,false,false,false,false,false,{"$nulls":11},false,null,null,"",""]
["",{"$nulls":30},true,{"$nulls":5},false,{"$nulls":7},false,false,false,false,false,false,false,false,false,{"$nulls":11},false,null,null,"",""]
["",{"$nulls":30},true,{"$nulls":5},false,{"$nulls":7},false,false,false,false,false,false,false,false,false,{"$nulls":11},false,null,null,"",""]
["",{"$nulls":30},true,{"$nulls":5},false,{"$nulls":7},false,false,false,false,false,false,false,false,false,{"$nulls":11},false,null,null,"",""]
["",{"$nulls":30},true,{"$nulls":5},false,{"$nulls":7},false,false,false,false,false,false,false,false,false,{"$nulls":11},false,null,null,"",""]
["",{"$nulls":30},true,{"$nulls":5},false,{"$nulls":7},false,false,false,false,false,false,false,false,false,{"$nulls":11},false,null,null,"",""]
["",{"$nulls":30},true,{"$nulls":5},false,{"$nulls":7},false,false,false,false,false,false,false,false,false,{"$nulls":11},false,null,null,"",""]
["",{"$nulls":30},true,{"$nulls":5},false,{"$nulls":7},false,false,false,false,false,false,false,false,false,{"$nulls":11},false,null,null,"",""]
["",{"$nulls":30},true,{"$nulls":5},false,{"$nulls":7},false,false,false,false,false,false,false,false,false,{"$nulls":11},false,null,null,"",""]
["",{"$nulls":30},true,{"$nulls":5},false,{"$nulls":7},false,false,false,false,false,false,false,false,false,{"$nulls":11},false,null,null,"",""]
[{"$f":"IF(TRIM(B643)=\"\",\"\",TRIM(CONCATENATE(B643,\": \",TRIM(D643&\" \"&C643),O643)))","v":""},{"$nulls":30},true,{"$nulls":5},false,{"$nulls":7},false,false,false,false,false,false,false,false,false,{"$nulls":11},false,null,null,{"$f":"IF(AL643,A643,\"\")","v":""},{"$f":"IF(OR(TRIM(AP643)=\"\", AP643=\"Not Joint Holding\"),\"\",A643)","v":""}]
["",{"$nulls":30},true,{"$nulls":5},false,{"$nulls":7},false,false,false,false,false,false,false,false,false,{"$nulls":11},false,null,null,"",""]
["",{"$nulls":30},true,{"$nulls":5},false,{"$nulls":7},false,false,false,false,false,false,false,false,false,{"$nulls":11},false,null,null,"",""]
["",{"$nulls":30},true,{"$nulls":5},false,{"$nulls":7},false,false,false,false,false,false,false,false,false,{"$nulls":11},false,null,null,"",""]
["",{"$nulls":30},true,{"$nulls":5},false,{"$nulls":7},false,false,false,false,false,false,false,false,false,{"$nulls":11},false,null,null,"",""]
["",{"$nulls":30},true,{"$nulls":5},false,{"$nulls":7},false,false,false,false,false,false,false,false,false,{"$nulls":11},false,null,null,"",""]
["",{"$nulls":30},true,{"$nulls":5},false,{"$nulls":7},false,false,false,false,false,false,false,false,false,{"$nulls":11},false,null,null,"",""]
["",{"$nulls":30},true,{"$nulls":5},false,{"$nulls":7},false,false,false,false,false,false,false,false,false,{"$nulls":11},false,null,null,"",""]
["",{"$nulls":30},true,{"$nulls":5},false,{"$nulls":7},false,false,false,false,false,false,false,false,false,{"$nulls":11},false,null,null,"",""]
["",{"$nulls":30},true,{"$nulls":5},false,{"$nulls":7},false,false,false,false,false,false,false,false,false,{"$nulls":11},false,null,null,"",""]
["",{"$nulls":30},true,{"$nulls":5},false,{"$nulls":7},false,false,false,false,false,false,false,false,false,{"$nulls":11},false,null,null,"",""]
["",{"$nulls":30},true,{"$nulls":5},false,{"$nulls":7},false,false,false,false,false,false,false,false,false,{"$nulls":11},false,null,null,"",""]
["",{"$nulls":30},true,{"$nulls":5},false,{"$nulls":7},false,false,false,false,false,false,false,false,false,{"$nulls":11},false,null,null,"",""]
["",{"$nulls":30},true,{"$nulls":5},false,{"$nulls":7},false,false,false,false,false,false,false,false,false,{"$nulls":11},false,null,null,"",""]
["",{"$nulls":30},true,{"$nulls":5},false,{"$nulls":7},false,false,false,false,false,false,false,false,false,{"$nulls":11},false,null,null,"",""]
["",{"$nulls":30},true,{"$nulls":5},false,{"$nulls":7},false,false,false,false,false,false,false,false,false,{"$nulls":11},false,null,null,"",""]
["",{"$nulls":30},true,{"$nulls":5},false,{"$nulls":7},false,false,false,false,false,false,false,false,false,{"$nulls":11},false,null,null,"",""]
["",{"$nulls":30},true,{"$nulls":5},false,{"$nulls":7},false,false,false,false,false,false,false,false,false,{"$nulls":11},false,null,null,"",""]
["",{"$nulls":30},true,{"$nulls":5},false,{"$nulls":7},false,false,false,false,false,false,false,false,false,{"$nulls":11},false,null,null,"",""]
["",{"$nulls":30},true,{"$nulls":5},false,{"$nulls":7},false,false,false,false,false,false,false,false,false,{"$nulls":11},false,null,null,"",""]
["",{"$nulls":30},true,{"$nulls":5},false,{"$nulls":7},false,false,false,false,false,false,false,false,false,{"$nulls":11},false,null,null,"",""]
["",{"$nulls":30},true,{"$nulls":5},false,{"$nulls":7},false,false,false,false,false,false,false,false,false,{"$nulls":11},false,null,null,"",""]
["",{"$nulls":30},true,{"$nulls":5},false,{"$nulls":7},false,false,false,false,false,false,false,false,false,{"$nulls":11},false,null,null,"",""]
["",{"$nulls":30},true,{"$nulls":5},false,{"$nulls":7},false,false,false,false,false,false,false,false,false,{"$nulls":11},false,null,null,"",""]
["",{"$nulls":30},true,{"$nulls":5},false,{"$nulls":7},false,false,false,false,false,false,false,false,false,{"$nulls":11},false,null,null,"",""]
["",{"$nulls":30},true,{"$nulls":5},false,{"$nulls":7},false,false,false,false,false,false,false,false,false,{"$nulls":11},false,null,null,"",""]
["",{"$nulls":30},true,{"$nulls":5},false,{"$nulls":7},false,false,false,false,false,false,false,false,false,{"$nulls":11},false,null,null,"",""]
["",{"$nulls":30},true,{"$nulls":5},false,{"$nulls":7},false,false,false,false,false,false,false,false,false,{"$nulls":11},false,null,null,"",""]
["",{"$nulls":30},true,{"$nulls":5},false,{"$nulls":7},false,false,false,false,false,false,false,false,false,{"$nulls":11},false,null,null,"",""]
["",{"$nulls":30},true,{"$nulls":5},false,{"$nulls":7},false,false,false,false,false,false,false,false,false,{"$nulls":11},false,null,null,"",""]
["",{"$nulls":30},true,{"$nulls":5},false,{"$nulls":7},false,false,false,false,false,false,false,false,false,{"$nulls":11},false,null,null,"",""]
["",{"$nulls":30},true,{"$nulls":5},false,{"$nulls":7},false,false,false,false,false,false,false,false,false,{"$nulls":11},false,null,null,"",""]
["",{"$nulls":30},true,{"$nulls":5},false,{"$nulls":7},false,false,false,false,false,false,false,false,false,{"$nulls":11},false,null,null,"",""]
["",{"$nulls":30},true,{"$nulls":5},false,{"$nulls":7},false,false,false,false,false,false,false,false,false,{"$nulls":11},false,null,null,"",""]
["",{"$nulls":30},true,{"$nulls":5},false,{"$nulls":7},false,false,false,false,false,false,false,false,false,{"$nulls":11},false,null,null,"",""]
["",{"$nulls":30},true,{"$nulls":5},false,{"$nulls":7},false,false,false,false,false,false,false,false,false,{"$nulls":11},false,null,null,"",""]
["",{"$nulls":30},true,{"$nulls":5},false,{"$nulls":7},false,false,false,false,false,false,false,false,false,{"$nulls":11},false,null,null,"",""]
["",{"$nulls":30},true,{"$nulls":5},false,{"$nulls":7},false,false,false,false,false,false,false,false,false,{"$nulls":11},false,null,null,"",""]
["",{"$nulls":30},true,{"$nulls":5},false,{"$nulls":7},false,false,false,false,false,false,false,false,false,{"$nulls":11},false,null,null,"",""]
["",{"$nulls":30},true,{"$nulls":5},false,{"$nulls":7},false,false,false,false,false,false,false,false,false,{"$nulls":11},false,null,null,"",""]
["",{"$nulls":30},true,{"$nulls":5},false,{"$nulls":7},false,false,false,false,false,false,false,false,false,{"$nulls":11},false,null,null,"",""]
["",{"$nulls":30},true,{"$nulls":5},false,{"$nulls":7},false,false,false,false,false,false,false,false,false,{"$nulls":11},false,null,null,"",""]
["",{"$nulls":30},true,{"$nulls":5},false,{"$nulls":7},false,false,false,false,false,false,false,false,false,{"$nulls":11},false,null,null,"",""]
["",{"$nulls":30},true,{"$nulls":5},false,{"$nulls":7},false,false,false,false,false,false,false,false,false,{"$nulls":11},false,null,null,"",""]
["",{"$nulls":30},true,{"$nulls":5},false,{"$nulls":7},false,false,false,false,false,false,false,false,false,{"$nulls":11},false,null,null,"",""]
["",{"$nulls":30},true,{"$nulls":5},false,{"$nulls":7},false,false,false,false,false,false,false,false,false,{"$nulls":11},false,null,null,"",""]
["",{"$nulls":30},true,{"$nulls":5},false,{"$nulls":7},false,false,false,false,false,false,false,false,false,{"$nulls":11},false,null,null,"",""]
["",{"$nulls":30},true,{"$nulls":5},false,{"$nulls":7},false,false,false,false,false,false,false,false,false,{"$nulls":11},false,null,null,"",""]
["",{"$nulls":30},true,{"$nulls":5},false,{"$nulls":7},false,false,false,false,false,false,false,false,false,{"$nulls":11},false,null,null,"",""]
["",{"$nulls":30},true,{"$nulls":5},false,{"$nulls":7},false,false,false,false,false,false,false,false,false,{"$nulls":11},false,null,null,"",""]
["",{"$nulls":30},true,{"$nulls":5},false,{"$nulls":7},false,false,false,false,false,false,false,false,false,{"$nulls":11},false,null,null,"",""]
["",{"$nulls":30},true,{"$nulls":5},false,{"$nulls":7},false,false,false,false,false,false,false,false,false,{"$nulls":11},false,null,null,"",""]
["",{"$nulls":30},true,{"$nulls":5},false,{"$nulls":7},false,false,false,false,false,false,false,false,false,{"$nulls":11},false,null,null,"",""]
["",{"$nulls":30},true,{"$nulls":5},false,{"$nulls":7},false,false,false,false,false,false,false,false,false,{"$nulls":11},false,null,null,"",""]
["",{"$nulls":30},true,{"$nulls":5},false,{"$nulls":7},false,false,false,false,false,false,false,false,false,{"$nulls":11},false,null,null,"",""]
["",{"$nulls":30},true,{"$nulls":5},false,{"$nulls":7},false,false,false,false,false,false,false,false,false,{"$nulls":11},false,null,null,"",""]
["",{"$nulls":30},true,{"$nulls":5},false,{"$nulls":7},false,false,false,false,false,false,false,false,false,{"$nulls":11},false,null,null,"",""]
["",{"$nulls":30},true,{"$nulls":5},false,{"$nulls":7},false,false,false,false,false,false,false,false,false,{"$nulls":11},false,null,null,"",""]
["",{"$nulls":30},true,{"$nulls":5},false,{"$nulls":7},false,false,false,false,false,false,false,false,false,{"$nulls":11},false,null,null,"",""]
["",{"$nulls":30},true,{"$nulls":5},false,{"$nulls":7},false,false,false,false,false,false,false,false,false,{"$nulls":11},false,null,null,"",""]
["",{"$nulls":30},true,{"$nulls":5},false,{"$nulls":7},false,false,false,false,false,false,false,false,false,{"$nulls":11},false,null,null,"",""]
["",{"$nulls":30},true,{"$nulls":5},false,{"$nulls":7},false,false,false,false,false,false,false,false,false,{"$nulls":11},false,null,null,"",""]
["",{"$nulls":30},true,{"$nulls":5},false,{"$nulls":7},false,false,false,false,false,false,false,false,false,{"$nulls":11},false,null,null,"",""]
["",{"$nulls":30},true,{"$nulls":5},false,{"$nulls":7},false,false,false,false,false,false,false,false,false,{"$nulls":11},false,null,null,"",""]
[{"$f":"IF(TRIM(B707)=\"\",\"\",TRIM(CONCATENATE(B707,\": \",TRIM(D707&\" \"&C707),O707)))","v":""},{"$nulls":30},true,{"$nulls":5},false,{"$nulls":7},false,false,false,false,false,false,false,false,false,{"$nulls":11},false,null,null,{"$f":"IF(AL707,A707,\"\")","v":""},{"$f":"IF(OR(TRIM(AP707)=\"\", AP707=\"Not Joint Holding\"),\"\",A707)","v":""}]
["",{"$nulls":30},true,{"$nulls":5},false,{"$nulls":7},false,false,false,false,false,false,false,false,false,{"$nulls":11},false,null,null,"",""]
["",{"$nulls":30},true,{"$nulls":5},false,{"$nulls":7},false,false,false,false,false,false,false,false,false,{"$nulls":11},false,null,null,"",""]
["",{"$nulls":30},true,{"$nulls":5},false,{"$nulls":7},false,false,false,false,false,false,false,false,false,{"$nulls":11},false,null,null,"",""]
["",{"$nulls":30},true,{"$nulls":5},false,{"$nulls":7},false,false,false,false,false,false,false,false,false,{"$nulls":11},false,null,null,"",""]
["",{"$nulls":30},true,{"$nulls":5},false,{"$nulls":7},false,false,false,false,false,false,false,false,false,{"$nulls":11},false,null,null,"",""]
["",{"$nulls":30},true,{"$nulls":5},false,{"$nulls":7},false,false,false,false,false,false,false,false,false,{"$nulls":11},false,null,null,"",""]
["",{"$nulls":30},true,{"$nulls":5},false,{"$nulls":7},false,false,false,false,false,false,false,false,false,{"$nulls":11},false,null,null,"",""]
["",{"$nulls":30},true,{"$nulls":5},false,{"$nulls":7},false,false,false,false,false,false,false,false,false,{"$nulls":11},false,null,null,"",""]
["",{"$nulls":30},true,{"$nulls":5},false,{"$nulls":7},false,false,false,false,false,false,false,false,false,{"$nulls":11},false,null,null,"",""]
["",{"$nulls":30},true,{"$nulls":5},false,{"$nulls":7},false,false,false,false,false,false,false,false,false,{"$nulls":11},false,null,null,"",""]
["",{"$nulls":30},true,{"$nulls":5},false,{"$nulls":7},false,false,false,false,false,false,false,false,false,{"$nulls":11},false,null,null,"",""]
["",{"$nulls":30},true,{"$nulls":5},false,{"$nulls":7},false,false,false,false,false,false,false,false,false,{"$nulls":11},false,null,null,"",""]
["",{"$nulls":30},true,{"$nulls":5},false,{"$nulls":7},false,false,false,false,false,false,false,false,false,{"$nulls":11},false,null,null,"",""]
["",{"$nulls":30},true,{"$nulls":5},false,{"$nulls":7},false,false,false,false,false,false,false,false,false,{"$nulls":11},false,null,null,"",""]
["",{"$nulls":30},true,{"$nulls":5},false,{"$nulls":7},false,false,false,false,false,false,false,false,false,{"$nulls":11},false,null,null,"",""]
["",{"$nulls":30},true,{"$nulls":5},false,{"$nulls":7},false,false,false,false,false,false,false,false,false,{"$nulls":11},false,null,null,"",""]
["",{"$nulls":30},true,{"$nulls":5},false,{"$nulls":7},false,false,false,false,false,false,false,false,false,{"$nulls":11},false,null,null,"",""]
["",{"$nulls":30},true,{"$nulls":5},false,{"$nulls":7},false,false,false,false,false,false,false,false,false,{"$nulls":11},false,null,null,"",""]
["",{"$nulls":30},true,{"$nulls":5},false,{"$nulls":7},false,false,false,false,false,false,false,false,false,{"$nulls":11},false,null,null,"",""]
["",{"$nulls":30},true,{"$nulls":5},false,{"$nulls":7},false,false,false,false,false,false,false,false,false,{"$nulls":11},false,null,null,"",""]
["",{"$nulls":30},true,{"$nulls":5},false,{"$nulls":7},false,false,false,false,false,false,false,false,false,{"$nulls":11},false,null,null,"",""]
["",{"$nulls":30},true,{"$nulls":5},false,{"$nulls":7},false,false,false,false,false,false,false,false,false,{"$nulls":11},false,null,null,"",""]
["",{"$nulls":30},true,{"$nulls":5},false,{"$nulls":7},false,false,false,false,false,false,false,false,false,{"$nulls":11},false,null,null,"",""]
["",{"$nulls":30},true,{"$nulls":5},false,{"$nulls":7},false,false,false,false,false,false,false,false,false,{"$nulls":11},false,null,null,"",""]
["",{"$nulls":30},true,{"$nulls":5},false,{"$nulls":7},false,false,false,false,false,false,false,false,false,{"$nulls":11},false,null,null,"",""]
["",{"$nulls":30},true,{"$nulls":5},false,{"$nulls":7},false,false,false,false,false,false,false,false,false,{"$nulls":11},false,null,null,"",""]
["",{"$nulls":30},true,{"$nulls":5},false,{"$nulls":7},false,false,false,false,false,false,false,false,false,{"$nulls":11},false,null,null,"",""]
["",{"$nulls":30},true,{"$nulls":5},false,{"$nulls":7},false,false,false,false,false,false,false,false,false,{"$nulls":11},false,null,null,"",""]
["",{"$nulls":30},true,{"$nulls":5},false,{"$nulls":7},false,false,false,false,false,false,false,false,false,{"$nulls":11},false,null,null,"",""]
["",{"$nulls":30},true,{"$nulls":5},false,{"$nulls":7},false,false,false,false,false,false,false,false,false,{"$nulls":11},false,null,null,"",""]
["",{"$nulls":30},true,{"$nulls":5},false,{"$nulls":7},false,false,false,false,false,false,false,false,false,{"$nulls":11},false,null,null,"",""]
["",{"$nulls":30},true,{"$nulls":5},false,{"$nulls":7},false,false,false,false,false,false,false,false,false,{"$nulls":11},false,null,null,"",""]
["",{"$nulls":30},true,{"$nulls":5},false,{"$nulls":7},false,false,false,false,false,false,false,false,false,{"$nulls":11},false,null,null,"",""]
["",{"$nulls":30},true,{"$nulls":5},false,{"$nulls":7},false,false,false,false,false,false,false,false,false,{"$nulls":11},false,null,null,"",""]
["",{"$nulls":30},true,{"$nulls":5},false,{"$nulls":7},false,false,false,false,false,false,false,false,false,{"$nulls":11},false,null,null,"",""]
["",{"$nulls":30},true,{"$nulls":5},false,{"$nulls":7},false,false,false,false,false,false,false,false,false,{"$nulls":11},false,null,null,"",""]
["",{"$nulls":30},true,{"$nulls":5},false,{"$nulls":7},false,false,false,false,false,false,false,false,false,{"$nulls":11},false,null,null,"",""]
["",{"$nulls":30},true,{"$nulls":5},false,{"$nulls":7},false,false,false,false,false,false,false,false,false,{"$nulls":11},false,null,null,"",""]
["",{"$nulls":30},true,{"$nulls":5},false,{"$nulls":7},false,false,false,false,false,false,false,false,false,{"$nulls":11},false,null,null,"",""]
["",{"$nulls":30},true,{"$nulls":5},false,{"$nulls":7},false,false,false,false,false,false,false,false,false,{"$nulls":11},false,null,null,"",""]
["",{"$nulls":30},true,{"$nulls":5},false,{"$nulls":7},false,false,false,false,false,false,false,false,false,{"$nulls":11},false,null,null,"",""]
["",{"$nulls":30},true,{"$nulls":5},false,{"$nulls":7},false,false,false,false,false,false,false,false,false,{"$nulls":11},false,null,null,"",""]
["",{"$nulls":30},true,{"$nulls":5},false,{"$nulls":7},false,false,false,false,false,false,false,false,false,{"$nulls":11},false,null,null,"",""]
["",{"$nulls":30},true,{"$nulls":5},false,{"$nulls":7},false,false,false,false,false,false,false,false,false,{"$nulls":11},false,null,null,"",""]
["",{"$nulls":30},true,{"$nulls":5},false,{"$nulls":7},false,false,false,false,false,false,false,false,false,{"$nulls":11},false,null,null,"",""]
["",{"$nulls":30},true,{"$nulls":5},false,{"$nulls":7},false,false,false,false,false,false,false,false,false,{"$nulls":11},false,null,null,"",""]
["",{"$nulls":30},true,{"$nulls":5},false,{"$nulls":7},false,false,false,false,false,false,false,false,false,{"$nulls":11},false,null,null,"",""]
["",{"$nulls":30},true,{"$nulls":5},false,{"$nulls":7},false,false,false,false,false,false,false,false,false,{"$nulls":11},false,null,null,"",""]
["",{"$nulls":30},true,{"$nulls":5},false,{"$nulls":7},false,false,false,false,false,false,false,false,false,{"$nulls":11},false,null,null,"",""]
["",{"$nulls":30},true,{"$nulls":5},false,{"$nulls":7},false,false,false,false,false,false,false,false,false,{"$nulls":11},false,null,null,"",""]
["",{"$nulls":30},true,{"$nulls":5},false,{"$nulls":7},false,false,false,false,false,false,false,false,false,{"$nulls":11},false,null,null,"",""]
["",{"$nulls":30},true,{"$nulls":5},false,{"$nulls":7},false,false,false,false,false,false,false,false,false,{"$nulls":11},false,null,null,"",""]
["",{"$nulls":30},true,{"$nulls":5},false,{"$nulls":7},false,false,false,false,false,false,false,false,false,{"$nulls":11},false,null,null,"",""]
["",{"$nulls":30},true,{"$nulls":5},false,{"$nulls":7},false,false,false,false,false,false,false,false,false,{"$nulls":11},false,null,null,"",""]
["",{"$nulls":30},true,{"$nulls":5},false,{"$nulls":7},false,false,false,false,false,false,false,false,false,{"$nulls":11},false,null,null,"",""]
["",{"$nulls":30},true,{"$nulls":5},false,{"$nulls":7},false,false,false,false,false,false,false,false,false,{"$nulls":11},false,null,null,"",""]
["",{"$nulls":30},true,{"$nulls":5},false,{"$nulls":7},false,false,false,false,false,false,false,false,false,{"$nulls":11},false,null,null,"",""]
["",{"$nulls":30},true,{"$nulls":5},false,{"$nulls":7},false,false,false,false,false,false,false,false,false,{"$nulls":11},false,null,null,"",""]
["",{"$nulls":30},true,{"$nulls":5},false,{"$nulls":7},false,false,false,false,false,false,false,false,false,{"$nulls":11},false,null,null,"",""]
["",{"$nulls":30},true,{"$nulls":5},false,{"$nulls":7},false,false,false,false,false,false,false,false,false,{"$nulls":11},false,null,null,"",""]
["",{"$nulls":30},true,{"$nulls":5},false,{"$nulls":7},false,false,false,false,false,false,false,false,false,{"$nulls":11},false,null,null,"",""]
["",{"$nulls":30},true,{"$nulls":5},false,{"$nulls":7},false,false,false,false,false,false,false,false,false,{"$nulls":11},false,null,null,"",""]
["",{"$nulls":30},true,{"$nulls":5},false,{"$nulls":7},false,false,false,false,false,false,false,false,false,{"$nulls":11},false,null,null,"",""]
[{"$f":"IF(TRIM(B771)=\"\",\"\",TRIM(CONCATENATE(B771,\": \",TRIM(D771&\" \"&C771),O771)))","v":""},{"$nulls":30},true,{"$nulls":5},false,{"$nulls":7},false,false,false,false,false,false,false,false,false,{"$nulls":11},false,null,null,{"$f":"IF(AL771,A771,\"\")","v":""},{"$f":"IF(OR(TRIM(AP771)=\"\", AP771=\"Not Joint Holding\"),\"\",A771)","v":""}]
["",{"$nulls":30},true,{"$nulls":5},false,{"$nulls":7},false,false,false,false,false,false,false,false,false,{"$nulls":11},false,null,null,"",""]
["",{"$nulls":30},true,{"$nulls":5},false,{"$nulls":7},false,false,false,false,false,false,false,false,false,{"$nulls":11},false,null,null,"",""]
["",{"$nulls":30},true,{"$nulls":5},false,{"$nulls":7},false,false,false,false,false,false,false,false,false,{"$nulls":11},false,null,null,"",""]
["",{"$nulls":30},true,{"$nulls":5},false,{"$nulls":7},false,false,false,false,false,false,false,false,false,{"$nulls":11},false,null,null,"",""]
["",{"$nulls":30},true,{"$nulls":5},false,{"$nulls":7},false,false,false,false,false,false,false,false,false,{"$nulls":11},false,null,null,"",""]
["",{"$nulls":30},true,{"$nulls":5},false,{"$nulls":7},false,false,false,false,false,false,false,false,false,{"$nulls":11},false,null,null,"",""]
["",{"$nulls":30},true,{"$nulls":5},false,{"$nulls":7},false,false,false,false,false,false,false,false,false,{"$nulls":11},false,null,null,"",""]
["",{"$nulls":30},true,{"$nulls":5},false,{"$nulls":7},false,false,false,false,false,false,false,false,false,{"$nulls":11},false,null,null,"",""]
["",{"$nulls":30},true,{"$nulls":5},false,{"$nulls":7},false,false,false,false,false,false,false,false,false,{"$nulls":11},false,null,null,"",""]
["",{"$nulls":30},true,{"$nulls":5},false,{"$nulls":7},false,false,false,false,false,false,false,false,false,{"$nulls":11},false,null,null,"",""]
["",{"$nulls":30},true,{"$nulls":5},false,{"$nulls":7},false,false,false,false,false,false,false,false,false,{"$nulls":11},false,null,null,"",""]
["",{"$nulls":30},true,{"$nulls":5},false,{"$nulls":7},false,false,false,false,false,false,false,false,false,{"$nulls":11},false,null,null,"",""]
["",{"$nulls":30},true,{"$nulls":5},false,{"$nulls":7},false,false,false,false,false,false,false,false,false,{"$nulls":11},false,null,null,"",""]
["",{"$nulls":30},true,{"$nulls":5},false,{"$nulls":7},false,false,false,false,false,false,false,false,false,{"$nulls":11},false,null,null,"",""]
["",{"$nulls":30},true,{"$nulls":5},false,{"$nulls":7},false,false,false,false,false,false,false,false,false,{"$nulls":11},false,null,null,"",""]
["",{"$nulls":30},true,{"$nulls":5},false,{"$nulls":7},false,false,false,false,false,false,false,false,false,{"$nulls":11},false,null,null,"",""]
["",{"$nulls":30},true,{"$nulls":5},false,{"$nulls":7},false,false,false,false,false,false,false,false,false,{"$nulls":11},false,null,null,"",""]
["",{"$nulls":30},true,{"$nulls":5},false,{"$nulls":7},false,false,false,false,false,false,false,false,false,{"$nulls":11},false,null,null,"",""]
["",{"$nulls":30},true,{"$nulls":5},false,{"$nulls":7},false,false,false,false,false,false,false,false,false,{"$nulls":11},false,null,null,"",""]
["",{"$nulls":30},true,{"$nulls":5},false,{"$nulls":7},false,false,false,false,false,false,false,false,false,{"$nulls":11},false,null,null,"",""]
["",{"$nulls":30},true,{"$nulls":5},false,{"$nulls":7},false,false,false,false,false,false,false,false,false,{"$nulls":11},false,null,null,"",""]
["",{"$nulls":30},true,{"$nulls":5},false,{"$nulls":7},false,false,false,false,false,false,false,false,false,{"$nulls":11},false,null,null,"",""]
["",{"$nulls":30},true,{"$nulls":5},false,{"$nulls":7},false,false,false,false,false,false,false,false,false,{"$nulls":11},false,null,null,"",""]
["",{"$nulls":30},true,{"$nulls":5},false,{"$nulls":7},false,false,false,false,false,false,false,false,false,{"$nulls":11},false,null,null,"",""]
["",{"$nulls":30},true,{"$nulls":5},false,{"$nulls":7},false,false,false,false,false,false,false,false,false,{"$nulls":11},false,null,null,"",""]
["",{"$nulls":30},true,{"$nulls":5},false,{"$nulls":7},false,false,false,false,false,false,false,false,false,{"$nulls":11},false,null,null,"",""]
["",{"$nulls":30},true,{"$nulls":5},false,{"$nulls":7},false,false,false,false,false,false,false,false,false,{"$nulls":11},false,null,null,"",""]
["",{"$nulls":30},true,{"$nulls":5},false,{"$nulls":7},false,false,false,false,false,false,false,false,false,{"$nulls":11},false,null,null,"",""]
["",{"$nulls":30},true,{"$nulls":5},false,{"$nulls":7},false,false,false,false,false,false,false,false,false,{"$nulls":11},false,null,null,"",""]
["",{"$nulls":30},true,{"$nulls":5},false,{"$nulls":7},false,false,false,false,false,false,false,false,false,{"$nulls":11},false,null,null,"",""]
["",{"$nulls":30},true,{"$nulls":5},false,{"$nulls":7},false,false,false,false,false,false,false,false,false,{"$nulls":11},false,null,null,"",""]
["",{"$nulls":30},true,{"$nulls":5},false,{"$nulls":7},false,false,false,false,false,false,false,false,false,{"$nulls":11},false,null,null,"",""]
["",{"$nulls":30},true,{"$nulls":5},false,{"$nulls":7},false,false,false,false,false,false,false,false,false,{"$nulls":11},false,null,null,"",""]
["",{"$nulls":30},true,{"$nulls":5},false,{"$nulls":7},false,false,false,false,false,false,false,false,false,{"$nulls":11},false,null,null,"",""]
["",{"$nulls":30},true,{"$nulls":5},false,{"$nulls":7},false,false,false,false,false,false,false,false,false,{"$nulls":11},false,null,null,"",""]
["",{"$nulls":30},true,{"$nulls":5},false,{"$nulls":7},false,false,false,false,false,false,false,false,false,{"$nulls":11},false,null,null,"",""]
["",{"$nulls":30},true,{"$nulls":5},false,{"$nulls":7},false,false,false,false,false,false,false,false,false,{"$nulls":11},false,null,null,"",""]
["",{"$nulls":30},true,{"$nulls":5},false,{"$nulls":7},false,false,false,false,false,false,false,false,false,{"$nulls":11},false,null,null,"",""]
["",{"$nulls":30},true,{"$nulls":5},false,{"$nulls":7},false,false,false,false,false,false,false,false,false,{"$nulls":11},false,null,null,"",""]
["",{"$nulls":30},true,{"$nulls":5},false,{"$nulls":7},false,false,false,false,false,false,false,false,false,{"$nulls":11},false,null,null,"",""]
["",{"$nulls":30},true,{"$nulls":5},false,{"$nulls":7},false,false,false,false,false,false,false,false,false,{"$nulls":11},false,null,null,"",""]
["",{"$nulls":30},true,{"$nulls":5},false,{"$nulls":7},false,false,false,false,false,false,false,false,false,{"$nulls":11},false,null,null,"",""]
["",{"$nulls":30},true,{"$nulls":5},false,{"$nulls":7},false,false,false,false,false,false,false,false,false,{"$nulls":11},false,null,null,"",""]
["",{"$nulls":30},true,{"$nulls":5},false,{"$nulls":7},false,false,false,false,false,false,false,false,false,{"$nulls":11},false,null,null,"",""]
["",{"$nulls":30},true,{"$nulls":5},false,{"$nulls":7},false,false,false,false,false,false,false,false,false,{"$nulls":11},false,null,null,"",""]
["",{"$nulls":30},true,{"$nulls":5},false,{"$nulls":7},false,false,false,false,false,false,false,false,false,{"$nulls":11},false,null,null,"",""]
["",{"$nulls":30},true,{"$nulls":5},false,{"$nulls":7},false,false,false,false,false,false,false,false,false,{"$nulls":11},false,null,null,"",""]
["",{"$nulls":30},true,{"$nulls":5},false,{"$nulls":7},false,false,false,false,false,false,false,false,false,{"$nulls":11},false,null,null,"",""]
["",{"$nulls":30},true,{"$nulls":5},false,{"$nulls":7},false,false,false,false,false,false,false,false,false,{"$nulls":11},false,null,null,"",""]
["",{"$nulls":30},true,{"$nulls":5},false,{"$nulls":7},false,false,false,false,false,false,false,false,false,{"$nulls":11},false,null,null,"",""]
["",{"$nulls":30},true,{"$nulls":5},false,{"$nulls":7},false,false,false,false,false,false,false,false,false,{"$nulls":11},false,null,null,"",""]
["",{"$nulls":30},true,{"$nulls":5},false,{"$nulls":7},false,false,false,false,false,false,false,false,false,{"$nulls":11},false,null,null,"",""]
["",{"$nulls":30},true,{"$nulls":5},false,{"$nulls":7},false,false,false,false,false,false,false,false,false,{"$nulls":11},false,null,null,"",""]
["",{"$nulls":30},true,{"$nulls":5},false,{"$nulls":7},false,false,false,false,false,false,false,false,false,{"$nulls":11},false,null,null,"",""]
["",{"$nulls":30},true,{"$nulls":5},false,{"$nulls":7},false,false,false,false,false,false,false,false,false,{"$nulls":11},false,null,null,"",""]
["",{"$nulls":30},true,{"$nulls":5},false,{"$nulls":7},false,false,false,false,false,false,false,false,false,{"$nulls":11},false,null,null,"",""]
["",{"$nulls":30},true,{"$nulls":5},false,{"$nulls":7},false,false,false,false,false,false,false,false,false,{"$nulls":11},false,null,null,"",""]
["",{"$nulls":30},true,{"$nulls":5},false,{"$nulls":7},false,false,false,false,false,false,false,false,false,{"$nulls":11},false,null,null,"",""]
["",{"$nulls":30},true,{"$nulls":5},false,{"$nulls":7},false,false,false,false,false,false,false,false,false,{"$nulls":11},false,null,null,"",""]
["",{"$nulls":30},true,{"$nulls":5},false,{"$nulls":7},false,false,false,false,false,false,false,false,false,{"$nulls":11},false,null,null,"",""]
["",{"$nulls":30},true,{"$nulls":5},false,{"$nulls":7},false,false,false,false,false,false,false,false,false,{"$nulls":11},false,null,null,"",""]
["",{"$nulls":30},true,{"$nulls":5},false,{"$nulls":7},false,false,false,false,false,false,false,false,false,{"$nulls":11},false,null,null,"",""]
["",{"$nulls":30},true,{"$nulls":5},false,{"$nulls":7},false,false,false,false,false,false,false,false,false,{"$nulls":11},false,null,null,"",""]
[{"$f":"IF(TRIM(B835)=\"\",\"\",TRIM(CONCATENATE(B835,\": \",TRIM(D835&\" \"&C835),O835)))","v":""},{"$nulls":30},true,{"$nulls":5},false,{"$nulls":7},false,false,false,false,false,false,false,false,false,{"$nulls":11},false,null,null,{"$f":"IF(AL835,A835,\"\")","v":""},{"$f":"IF(OR(TRIM(AP835)=\"\", AP835=\"Not Joint Holding\"),\"\",A835)","v":""}]
["",{"$nulls":30},true,{"$nulls":5},false,{"$nulls":7},false,false,false,false,false,false,false,false,false,{"$nulls":11},false,null,null,"",""]
["",{"$nulls":30},true,{"$nulls":5},false,{"$nulls":7},false,false,false,false,false,false,false,false,false,{"$nulls":11},false,null,null,"",""]
["",{"$nulls":30},true,{"$nulls":5},false,{"$nulls":7},false,false,false,false,false,false,false,false,false,{"$nulls":11},false,null,null,"",""]
["",{"$nulls":30},true,{"$nulls":5},false,{"$nulls":7},false,false,false,false,false,false,false,false,false,{"$nulls":11},false,null,null,"",""]
["",{"$nulls":30},true,{"$nulls":5},false,{"$nulls":7},false,false,false,false,false,false,false,false,false,{"$nulls":11},false,null,null,"",""]
["",{"$nulls":30},true,{"$nulls":5},false,{"$nulls":7},false,false,false,false,false,false,false,false,false,{"$nulls":11},false,null,null,"",""]
["",{"$nulls":30},true,{"$nulls":5},false,{"$nulls":7},false,false,false,false,false,false,false,false,false,{"$nulls":11},false,null,null,"",""]
["",{"$nulls":30},true,{"$nulls":5},false,{"$nulls":7},false,false,false,false,false,false,false,false,false,{"$nulls":11},false,null,null,"",""]
["",{"$nulls":30},true,{"$nulls":5},false,{"$nulls":7},false,false,false,false,false,false,false,false,false,{"$nulls":11},false,null,null,"",""]
["",{"$nulls":30},true,{"$nulls":5},false,{"$nulls":7},false,false,false,false,false,false,false,false,false,{"$nulls":11},false,null,null,"",""]
["",{"$nulls":30},true,{"$nulls":5},false,{"$nulls":7},false,false,false,false,false,false,false,false,false,{"$nulls":11},false,null,null,"",""]
["",{"$nulls":30},true,{"$nulls":5},false,{"$nulls":7},false,false,false,false,false,false,false,false,false,{"$nulls":11},false,null,null,"",""]
["",{"$nulls":30},true,{"$nulls":5},false,{"$nulls":7},false,false,false,false,false,false,false,false,false,{"$nulls":11},false,null,null,"",""]
["",{"$nulls":30},true,{"$nulls":5},false,{"$nulls":7},false,false,false,false,false,false,false,false,false,{"$nulls":11},false,null,null,"",""]
["",{"$nulls":30},true,{"$nulls":5},false,{"$nulls":7},false,false,false,false,false,false,false,false,false,{"$nulls":11},false,null,null,"",""]
["",{"$nulls":30},true,{"$nulls":5},false,{"$nulls":7},false,false,false,false,false,false,false,false,false,{"$nulls":11},false,null,null,"",""]
["",{"$nulls":30},true,{"$nulls":5},false,{"$nulls":7},false,false,false,false,false,false,false,false,false,{"$nulls":11},false,null,null,"",""]
["",{"$nulls":30},true,{"$nulls":5},false,{"$nulls":7},false,false,false,false,false,false,false,false,false,{"$nulls":11},false,null,null,"",""]
["",{"$nulls":30},true,{"$nulls":5},false,{"$nulls":7},false,false,false,false,false,false,false,false,false,{"$nulls":11},false,null,null,"",""]
["",{"$nulls":30},true,{"$nulls":5},false,{"$nulls":7},false,false,false,false,false,false,false,false,false,{"$nulls":11},false,null,null,"",""]
["",{"$nulls":30},true,{"$nulls":5},false,{"$nulls":7},false,false,false,false,false,false,false,false,false,{"$nulls":11},false,null,null,"",""]
["",{"$nulls":30},true,{"$nulls":5},false,{"$nulls":7},false,false,false,false,false,false,false,false,false,{"$nulls":11},false,null,null,"",""]
["",{"$nulls":30},true,{"$nulls":5},false,{"$nulls":7},false,false,false,false,false,false,false,false,false,{"$nulls":11},false,null,null,"",""]
["",{"$nulls":30},true,{"$nulls":5},false,{"$nulls":7},false,false,false,false,false,false,false,false,false,{"$nulls":11},false,null,null,"",""]
["",{"$nulls":30},true,{"$nulls":5},false,{"$nulls":7},false,false,false,false,false,false,false,false,false,{"$nulls":11},false,null,null,"",""]
["",{"$nulls":30},true,{"$nulls":5},false,{"$nulls":7},false,false,false,false,false,false,false,false,false,{"$nulls":11},false,null,null,"",""]
["",{"$nulls":30},true,{"$nulls":5},false,{"$nulls":7},false,false,false,false,false,false,false,false,false,{"$nulls":11},false,null,null,"",""]
["",{"$nulls":30},true,{"$nulls":5},false,{"$nulls":7},false,false,false,false,false,false,false,false,false,{"$nulls":11},false,null,null,"",""]
["",{"$nulls":30},true,{"$nulls":5},false,{"$nulls":7},false,false,false,false,false,false,false,false,false,{"$nulls":11},false,null,null,"",""]
["",{"$nulls":30},true,{"$nulls":5},false,{"$nulls":7},false,false,false,false,false,false,false,false,false,{"$nulls":11},false,null,null,"",""]
["",{"$nulls":30},true,{"$nulls":5},false,{"$nulls":7},false,false,false,false,false,false,false,false,false,{"$nulls":11},false,null,null,"",""]
["",{"$nulls":30},true,{"$nulls":5},false,{"$nulls":7},false,false,false,false,false,false,false,false,false,{"$nulls":11},false,null,null,"",""]
["",{"$nulls":30},true,{"$nulls":5},false,{"$nulls":7},false,false,false,false,false,false,false,false,false,{"$nulls":11},false,null,null,"",""]
["",{"$nulls":30},true,{"$nulls":5},false,{"$nulls":7},false,false,false,false,false,false,false,false,false,{"$nulls":11},false,null,null,"",""]
["",{"$nulls":30},true,{"$nulls":5},false,{"$nulls":7},false,false,false,false,false,false,false,false,false,{"$nulls":11},false,null,null,"",""]
["",{"$nulls":30},true,{"$nulls":5},false,{"$nulls":7},false,false,false,false,false,false,false,false,false,{"$nulls":11},false,null,null,"",""]
["",{"$nulls":30},true,{"$nulls":5},false,{"$nulls":7},false,false,false,false,false,false,false,false,false,{"$nulls":11},false,null,null,"",""]
["",{"$nulls":30},true,{"$nulls":5},false,{"$nulls":7},false,false,false,false,false,false,false,false,false,{"$nulls":11},false,null,null,"",""]
["",{"$nulls":30},true,{"$nulls":5},false,{"$nulls":7},false,false,false,false,false,false,false,false,false,{"$nulls":11},false,null,null,"",""]
["",{"$nulls":30},true,{"$nulls":5},false,{"$nulls":7},false,false,false,false,false,false,false,false,false,{"$nulls":11},false,null,null,"",""]
["",{"$nulls":30},true,{"$nulls":5},false,{"$nulls":7},false,false,false,false,false,false,false,false,false,{"$nulls":11},false,null,null,"",""]
["",{"$nulls":30},true,{"$nulls":5},false,{"$nulls":7},false,false,false,false,false,false,false,false,false,{"$nulls":11},false,null,null,"",""]
["",{"$nulls":30},true,{"$nulls":5},false,{"$nulls":7},false,false,false,false,false,false,false,false,false,{"$nulls":11},false,null,null,"",""]
["",{"$nulls":30},true,{"$nulls":5},false,{"$nulls":7},false,false,false,false,false,false,false,false,false,{"$nulls":11},false,null,null,"",""]
["",{"$nulls":30},true,{"$nulls":5},false,{"$nulls":7},false,false,false,false,false,false,false,false,false,{"$nulls":11},false,null,null,"",""]
["",{"$nulls":30},true,{"$nulls":5},false,{"$nulls":7},false,false,false,false,false,false,false,false,false,{"$nulls":11},false,null,null,"",""]
["",{"$nulls":30},true,{"$nulls":5},false,{"$nulls":7},false,false,false,false,false,false,false,false,false,{"$nulls":11},false,null,null,"",""]
["",{"$nulls":30},true,{"$nulls":5},false,{"$nulls":7},false,false,false,false,false,false,false,false,false,{"$nulls":11},false,null,null,"",""]
["",{"$nulls":30},true,{"$nulls":5},false,{"$nulls":7},false,false,false,false,false,false,false,false,false,{"$nulls":11},false,null,null,"",""]
["",{"$nulls":30},true,{"$nulls":5},false,{"$nulls":7},false,false,false,false,false,false,false,false,false,{"$nulls":11},false,null,null,"",""]
["",{"$nulls":30},true,{"$nulls":5},false,{"$nulls":7},false,false,false,false,false,false,false,false,false,{"$nulls":11},false,null,null,"",""]
["",{"$nulls":30},true,{"$nulls":5},false,{"$nulls":7},false,false,false,false,false,false,false,false,false,{"$nulls":11},false,null,null,"",""]
["",{"$nulls":30},true,{"$nulls":5},false,{"$nulls":7},false,false,false,false,false,false,false,false,false,{"$nulls":11},false,null,null,"",""]
["",{"$nulls":30},true,{"$nulls":5},false,{"$nulls":7},false,false,false,false,false,false,false,false,false,{"$nulls":11},false,null,null,"",""]
["",{"$nulls":30},true,{"$nulls":5},false,{"$nulls":7},false,false,false,false,false,false,false,false,false,{"$nulls":11},false,null,null,"",""]
["",{"$nulls":30},true,{"$nulls":5},false,{"$nulls":7},false,false,false,false,false,false,false,false,false,{"$nulls":11},false,null,null,"",""]
["",{"$nulls":30},true,{"$nulls":5},false,{"$nulls":7},false,false,false,false,false,false,false,false,false,{"$nulls":11},false,null,null,"",""]
["",{"$nulls":30},true,{"$nulls":5},false,{"$nulls":7},false,false,false,false,false,false,false,false,false,{"$nulls":11},false,null,null,"",""]
["",{"$nulls":30},true,{"$nulls":5},false,{"$nulls":7},false,false,false,false,false,false,false,false,false,{"$nulls":11},false,null,null,"",""]
["",{"$nulls":30},true,{"$nulls":5},false,{"$nulls":7},false,false,false,false,false,false,false,false,false,{"$nulls":11},false,null,null,"",""]
["",{"$nulls":30},true,{"$nulls":5},false,{"$nulls":7},false,false,false,false,false,false,false,false,false,{"$nulls":11},false,null,null,"",""]
["",{"$nulls":30},true,{"$nulls":5},false,{"$nulls":7},false,false,false,false,false,false,false,false,false,{"$nulls":11},false,null,null,"",""]
["",{"$nulls":30},true,{"$nulls":5},false,{"$nulls":7},false,false,false,false,false,false,false,false,false,{"$nulls":11},false,null,null,"",""]
[{"$f":"IF(TRIM(B899)=\"\",\"\",TRIM(CONCATENATE(B899,\": \",TRIM(D899&\" \"&C899),O899)))","v":""},{"$nulls":30},true,{"$nulls":5},false,{"$nulls":7},false,false,false,false,false,false,false,false,false,{"$nulls":11},false,null,null,{"$f":"IF(AL899,A899,\"\")","v":""},{"$f":"IF(OR(TRIM(AP899)=\"\", AP899=\"Not Joint Holding\"),\"\",A899)","v":""}]
["",{"$nulls":30},true,{"$nulls":5},false,{"$nulls":7},false,false,false,false,false,false,false,false,false,{"$nulls":11},false,null,null,"",""]
["",{"$nulls":30},true,{"$nulls":5},false,{"$nulls":7},false,false,false,false,false,false,false,false,false,{"$nulls":11},false,null,null,"",""]
["",{"$nulls":30},true,{"$nulls":5},false,{"$nulls":7},false,false,false,false,false,false,false,false,false,{"$nulls":11},false,null,null,"",""]
["",{"$nulls":30},true,{"$nulls":5},false,{"$nulls":7},false,false,false,false,false,false,false,false,false,{"$nulls":11},false,null,null,"",""]
["",{"$nulls":30},true,{"$nulls":5},false,{"$nulls":7},false,false,false,false,false,false,false,false,false,{"$nulls":11},false,null,null,"",""]
["",{"$nulls":30},true,{"$nulls":5},false,{"$nulls":7},false,false,false,false,false,false,false,false,false,{"$nulls":11},false,null,null,"",""]
["",{"$nulls":30},true,{"$nulls":5},false,{"$nulls":7},false,false,false,false,false,false,false,false,false,{"$nulls":11},false,null,null,"",""]
["",{"$nulls":30},true,{"$nulls":5},false,{"$nulls":7},false,false,false,false,false,false,false,false,false,{"$nulls":11},false,null,null,"",""]
["",{"$nulls":30},true,{"$nulls":5},false,{"$nulls":7},false,false,false,false,false,false,false,false,false,{"$nulls":11},false,null,null,"",""]
["",{"$nulls":30},true,{"$nulls":5},false,{"$nulls":7},false,false,false,false,false,false,false,false,false,{"$nulls":11},false,null,null,"",""]
["",{"$nulls":30},true,{"$nulls":5},false,{"$nulls":7},false,false,false,false,false,false,false,false,false,{"$nulls":11},false,null,null,"",""]
["",{"$nulls":30},true,{"$nulls":5},false,{"$nulls":7},false,false,false,false,false,false,false,false,false,{"$nulls":11},false,null,null,"",""]
["",{"$nulls":30},true,{"$nulls":5},false,{"$nulls":7},false,false,false,false,false,false,false,false,false,{"$nulls":11},false,null,null,"",""]
["",{"$nulls":30},true,{"$nulls":5},false,{"$nulls":7},false,false,false,false,false,false,false,false,false,{"$nulls":11},false,null,null,"",""]
["",{"$nulls":30},true,{"$nulls":5},false,{"$nulls":7},false,false,false,false,false,false,false,false,false,{"$nulls":11},false,null,null,"",""]
["",{"$nulls":30},true,{"$nulls":5},false,{"$nulls":7},false,false,false,false,false,false,false,false,false,{"$nulls":11},false,null,null,"",""]
["",{"$nulls":30},true,{"$nulls":5},false,{"$nulls":7},false,false,false,false,false,false,false,false,false,{"$nulls":11},false,null,null,"",""]
["",{"$nulls":30},true,{"$nulls":5},false,{"$nulls":7},false,false,false,false,false,false,false,false,false,{"$nulls":11},false,null,null,"",""]
["",{"$nulls":30},true,{"$nulls":5},false,{"$nulls":7},false,false,false,false,false,false,false,false,false,{"$nulls":11},false,null,null,"",""]
["",{"$nulls":30},true,{"$nulls":5},false,{"$nulls":7},false,false,false,false,false,false,false,false,false,{"$nulls":11},false,null,null,"",""]
["",{"$nulls":30},true,{"$nulls":5},false,{"$nulls":7},false,false,false,false,false,false,false,false,false,{"$nulls":11},false,null,null,"",""]
["",{"$nulls":30},true,{"$nulls":5},false,{"$nulls":7},false,false,false,false,false,false,false,false,false,{"$nulls":11},false,null,null,"",""]
["",{"$nulls":30},true,{"$nulls":5},false,{"$nulls":7},false,false,false,false,false,false,false,false,false,{"$nulls":11},false,null,null,"",""]
["",{"$nulls":30},true,{"$nulls":5},false,{"$nulls":7},false,false,false,false,false,false,false,false,false,{"$nulls":11},false,null,null,"",""]
["",{"$nulls":30},true,{"$nulls":5},false,{"$nulls":7},false,false,false,false,false,false,false,false,false,{"$nulls":11},false,null,null,"",""]
["",{"$nulls":30},true,{"$nulls":5},false,{"$nulls":7},false,false,false,false,false,false,false,false,false,{"$nulls":11},false,null,null,"",""]
["",{"$nulls":30},true,{"$nulls":5},false,{"$nulls":7},false,false,false,false,false,false,false,false,false,{"$nulls":11},false,null,null,"",""]
["",{"$nulls":30},true,{"$nulls":5},false,{"$nulls":7},false,false,false,false,false,false,false,false,false,{"$nulls":11},false,null,null,"",""]
["",{"$nulls":30},true,{"$nulls":5},false,{"$nulls":7},false,false,false,false,false,false,false,false,false,{"$nulls":11},false,null,null,"",""]
["",{"$nulls":30},true,{"$nulls":5},false,{"$nulls":7},false,false,false,false,false,false,false,false,false,{"$nulls":11},false,null,null,"",""]
["",{"$nulls":30},true,{"$nulls":5},false,{"$nulls":7},false,false,false,false,false,false,false,false,false,{"$nulls":11},false,null,null,"",""]
["",{"$nulls":30},true,{"$nulls":5},false,{"$nulls":7},false,false,false,false,false,false,false,false,false,{"$nulls":11},false,null,null,"",""]
["",{"$nulls":30},true,{"$nulls":5},false,{"$nulls":7},false,false,false,false,false,false,false,false,false,{"$nulls":11},false,null,null,"",""]
["",{"$nulls":30},true,{"$nulls":5},false,{"$nulls":7},false,false,false,false,false,false,false,false,false,{"$nulls":11},false,null,null,"",""]
["",{"$nulls":30},true,{"$nulls":5},false,{"$nulls":7},false,false,false,false,false,false,false,false,false,{"$nulls":11},false,null,null,"",""]
["",{"$nulls":30},true,{"$nulls":5},false,{"$nulls":7},false,false,false,false,false,false,false,false,false,{"$nulls":11},false,null,null,"",""]
["",{"$nulls":30},true,{"$nulls":5},false,{"$nulls":7},false,false,false,false,false,false,false,false,false,{"$nulls":11},false,null,null,"",""]
["",{"$nulls":30},true,{"$nulls":5},false,{"$nulls":7},false,false,false,false,false,false,false,false,false,{"$nulls":11},false,null,null,"",""]
["",{"$nulls":30},true,{"$nulls":5},false,{"$nulls":7},false,false,false,false,false,false,false,false,false,{"$nulls":11},false,null,null,"",""]
["",{"$nulls":30},true,{"$nulls":5},false,{"$nulls":7},false,false,false,false,false,false,false,false,false,{"$nulls":11},false,null,null,"",""]
["",{"$nulls":30},true,{"$nulls":5},false,{"$nulls":7},false,false,false,false,false,false,false,false,false,{"$nulls":11},false,null,null,"",""]
["",{"$nulls":30},true,{"$nulls":5},false,{"$nulls":7},false,false,false,false,false,false,false,false,false,{"$nulls":11},false,null,null,"",""]
["",{"$nulls":30},true,{"$nulls":5},false,{"$nulls":7},false,false,false,false,false,false,false,false,false,{"$nulls":11},false,null,null,"",""]
["",{"$nulls":30},true,{"$nulls":5},false,{"$nulls":7},false,false,false,false,false,false,false,false,false,{"$nulls":11},false,null,null,"",""]
["",{"$nulls":30},true,{"$nulls":5},false,{"$nulls":7},false,false,false,false,false,false,false,false,false,{"$nulls":11},false,null,null,"",""]
["",{"$nulls":30},true,{"$nulls":5},false,{"$nulls":7},false,false,false,false,false,false,false,false,false,{"$nulls":11},false,null,null,"",""]
["",{"$nulls":30},true,{"$nulls":5},false,{"$nulls":7},false,false,false,false,false,false,false,false,false,{"$nulls":11},false,null,null,"",""]
["",{"$nulls":30},true,{"$nulls":5},false,{"$nulls":7},false,false,false,false,false,false,false,false,false,{"$nulls":11},false,null,null,"",""]
["",{"$nulls":30},true,{"$nulls":5},false,{"$nulls":7},false,false,false,false,false,false,false,false,false,{"$nulls":11},false,null,null,"",""]
["",{"$nulls":30},true,{"$nulls":5},false,{"$nulls":7},false,false,false,false,false,false,false,false,false,{"$nulls":11},false,null,null,"",""]
["",{"$nulls":30},true,{"$nulls":5},false,{"$nulls":7},false,false,false,false,false,false,false,false,false,{"$nulls":11},false,null,null,"",""]
["",{"$nulls":30},true,{"$nulls":5},false,{"$nulls":7},false,false,false,false,false,false,false,false,false,{"$nulls":11},false,null,null,"",""]
["",{"$nulls":30},true,{"$nulls":5},false,{"$nulls":7},false,false,false,false,false,false,false,false,false,{"$nulls":11},false,null,null,"",""]
["",{"$nulls":30},true,{"$nulls":5},false,{"$nulls":7},false,false,false,false,false,false,false,false,false,{"$nulls":11},false,null,null,"",""]
["",{"$nulls":30},true,{"$nulls":5},false,{"$nulls":7},false,false,false,false,false,false,false,false,false,{"$nulls":11},false,null,null,"",""]
["",{"$nulls":30},true,{"$nulls":5},false,{"$nulls":7},false,false,false,false,false,false,false,false,false,{"$nulls":11},false,null,null,"",""]
["",{"$nulls":30},true,{"$nulls":5},false,{"$nulls":7},false,false,false,false,false,false,false,false,false,{"$nulls":11},false,null,null,"",""]
["",{"$nulls":30},true,{"$nulls":5},false,{"$nulls":7},false,false,false,false,false,false,false,false,false,{"$nulls":11},false,null,null,"",""]
["",{"$nulls":30},true,{"$nulls":5},false,{"$nulls":7},false,false,false,false,false,false,false,false,false,{"$nulls":11},false,null,null,"",""]
["",{"$nulls":30},true,{"$nulls":5},false,{"$nulls":7},false,false,false,false,false,false,false,false,false,{"$nulls":11},false,null,null,"",""]
["",{"$nulls":30},true,{"$nulls":5},false,{"$nulls":7},false,false,false,false,false,false,false,false,false,{"$nulls":11},false,null,null,"",""]
["",{"$nulls":30},true,{"$nulls":5},false,{"$nulls":7},false,false,false,false,false,false,false,false,false,{"$nulls":11},false,null,null,"",""]
["",{"$nulls":30},true,{"$nulls":5},false,{"$nulls":7},false,false,false,false,false,false,false,false,false,{"$nulls":11},false,null,null,"",""]
[{"$f":"IF(TRIM(B963)=\"\",\"\",TRIM(CONCATENATE(B963,\": \",TRIM(D963&\" \"&C963),O963)))","v":""},{"$nulls":30},true,{"$nulls":5},false,{"$nulls":7},false,false,false,false,false,false,false,false,false,{"$nulls":11},false,null,null,{"$f":"IF(AL963,A963,\"\")","v":""},{"$f":"IF(OR(TRIM(AP963)=\"\", AP963=\"Not Joint Holding\"),\"\",A963)","v":""}]
["",{"$nulls":30},true,{"$nulls":5},false,{"$nulls":7},false,false,false,false,false,false,false,false,false,{"$nulls":11},false,null,null,"",""]
["",{"$nulls":30},true,{"$nulls":5},false,{"$nulls":7},false,false,false,false,false,false,false,false,false,{"$nulls":11},false,null,null,"",""]
["",{"$nulls":30},true,{"$nulls":5},false,{"$nulls":7},false,false,false,false,false,false,false,false,false,{"$nulls":11},false,null,null,"",""]
["",{"$nulls":30},true,{"$nulls":5},false,{"$nulls":7},false,false,false,false,false,false,false,false,false,{"$nulls":11},false,null,null,"",""]
["",{"$nulls":30},true,{"$nulls":5},false,{"$nulls":7},false,false,false,false,false,false,false,false,false,{"$nulls":11},false,null,null,"",""]
["",{"$nulls":30},true,{"$nulls":5},false,{"$nulls":7},false,false,false,false,false,false,false,false,false,{"$nulls":11},false,null,null,"",""]
["",{"$nulls":30},true,{"$nulls":5},false,{"$nulls":7},false,false,false,false,false,false,false,false,false,{"$nulls":11},false,null,null,"",""]
["",{"$nulls":30},true,{"$nulls":5},false,{"$nulls":7},false,false,false,false,false,false,false,false,false,{"$nulls":11},false,null,null,"",""]
["",{"$nulls":30},true,{"$nulls":5},false,{"$nulls":7},false,false,false,false,false,false,false,false,false,{"$nulls":11},false,null,null,"",""]
["",{"$nulls":30},true,{"$nulls":5},false,{"$nulls":7},false,false,false,false,false,false,false,false,false,{"$nulls":11},false,null,null,"",""]
["",{"$nulls":30},true,{"$nulls":5},false,{"$nulls":7},false,false,false,false,false,false,false,false,false,{"$nulls":11},false,null,null,"",""]
["",{"$nulls":30},true,{"$nulls":5},false,{"$nulls":7},false,false,false,false,false,false,false,false,false,{"$nulls":11},false,null,null,"",""]
["",{"$nulls":30},true,{"$nulls":5},false,{"$nulls":7},false,false,false,false,false,false,false,false,false,{"$nulls":11},false,null,null,"",""]
["",{"$nulls":30},true,{"$nulls":5},false,{"$nulls":7},false,false,false,false,false,false,false,false,false,{"$nulls":11},false,null,null,"",""]
["",{"$nulls":30},true,{"$nulls":5},false,{"$nulls":7},false,false,false,false,false,false,false,false,false,{"$nulls":11},false,null,null,"",""]
["",{"$nulls":30},true,{"$nulls":5},false,{"$nulls":7},false,false,false,false,false,false,false,false,false,{"$nulls":11},false,null,null,"",""]
["",{"$nulls":30},true,{"$nulls":5},false,{"$nulls":7},false,false,false,false,false,false,false,false,false,{"$nulls":11},false,null,null,"",""]
["",{"$nulls":30},true,{"$nulls":5},false,{"$nulls":7},false,false,false,false,false,false,false,false,false,{"$nulls":11},false,null,null,"",""]
["",{"$nulls":30},true,{"$nulls":5},false,{"$nulls":7},false,false,false,false,false,false,false,false,false,{"$nulls":11},false,null,null,"",""]
["",{"$nulls":30},true,{"$nulls":5},false,{"$nulls":7},false,false,false,false,false,false,false,false,false,{"$nulls":11},false,null,null,"",""]
["",{"$nulls":30},true,{"$nulls":5},false,{"$nulls":7},false,false,false,false,false,false,false,false,false,{"$nulls":11},false,null,null,"",""]
["",{"$nulls":30},true,{"$nulls":5},false,{"$nulls":7},false,false,false,false,false,false,false,false,false,{"$nulls":11},false,null,null,"",""]
["",{"$nulls":30},true,{"$nulls":5},false,{"$nulls":7},false,false,false,false,false,false,false,false,false,{"$nulls":11},false,null,null,"",""]
["",{"$nulls":30},true,{"$nulls":5},false,{"$nulls":7},false,false,false,false,false,false,false,false,false,{"$nulls":11},false,null,null,"",""]
["",{"$nulls":30},true,{"$nulls":5},false,{"$nulls":7},false,false,false,false,false,false,false,false,false,{"$nulls":11},false,null,null,"",""]
["",{"$nulls":30},true,{"$nulls":5},false,{"$nulls":7},false,false,false,false,false,false,false,false,false,{"$nulls":11},false,null,null,"",""]
["",{"$nulls":30},true,{"$nulls":5},false,{"$nulls":7},false,false,false,false,false,false,false,false,false,{"$nulls":11},false,null,null,"",""]
["",{"$nulls":30},true,{"$nulls":5},false,{"$nulls":7},false,false,false,false,false,false,false,false,false,{"$nulls":11},false,null,null,"",""]
["",{"$nulls":30},true,{"$nulls":5},false,{"$nulls":7},false,false,false,false,false,false,false,false,false,{"$nulls":11},false,null,null,"",""]
["",{"$nulls":30},true,{"$nulls":5},false,{"$nulls":7},false,false,false,false,false,false,false,false,false,{"$nulls":11},false,null,null,"",""]
["",{"$nulls":30},true,{"$nulls":5},false,{"$nulls":7},false,false,false,false,false,false,false,false,false,{"$nulls":11},false,null,null,"",""]
["",{"$nulls":30},true,{"$nulls":5},false,{"$nulls":7},false,false,false,false,false,false,false,false,false,{"$nulls":11},false,null,null,"",""]
["",{"$nulls":30},true,{"$nulls":5},false,{"$nulls":7},false,false,false,false,false,false,false,false,false,{"$nulls":11},false,null,null,"",""]
["",{"$nulls":30},true,{"$nulls":5},false,{"$nulls":7},false,false,false,false,false,false,false,false,false,{"$nulls":11},false,null,null,"",""]
["",{"$nulls":30},true,{"$nulls":5},false,{"$nulls":7},false,false,false,false,false,false,false,false,false,{"$nulls":11},false,null,null,"",""]
["",{"$nulls":30},true,{"$nulls":5},false,{"$nulls":7},false,false,false,false,false,false,false,false,false,{"$nulls":11},false,null,null,"",""]
["",{"$nulls":30},true,{"$nulls":5},false,{"$nulls":7},false,false,false,false,false,false,false,false,false,{"$nulls":11},false,null,null,"",""]
["",{"$nulls":30},true,{"$nulls":5},false,{"$nulls":7},false,false,false,false,false,false,false,false,false,{"$nulls":11},false,null,null,"",""]

{"sheet":"Countries","index":1,"n_rows":250,"n_cols":2,"rows_kept":250}
["AFG","Afghanistan"]
["ALA","Åland Islands"]
["ALB","Albania"]
["DZA","Algeria"]
["ASM","American Samoa"]
["AND","Andorra"]
["AGO","Angola"]
["AIA","Anguilla"]
["ATA","Antarctica"]
["ATG","Antigua and Barbuda"]
["ARG","Argentina"]
["ARM","Armenia"]
["ABW","Aruba"]
["AUS","Australia"]
["AUT","Austria"]
["AZE","Azerbaijan"]
["BHS","Bahamas (the)"]
["BHR","Bahrain"]
["BGD","Bangladesh"]
["BRB","Barbados"]
["BLR","Belarus"]
["BEL","Belgium"]
["BLZ","Belize"]
["BEN","Benin"]
["BMU","Bermuda"]
["BTN","Bhutan"]
["BOL","Bolivia (Plurinational State of)"]
["BES","Bonaire, Sint Eustatius and Saba"]
["BIH","Bosnia and Herzegovina"]
["BWA","Botswana"]
["BVT","Bouvet Island"]
["BRA","Brazil"]
["IOT","British Indian Ocean Territory (the)"]
["BRN","Brunei Darussalam"]
["BGR","Bulgaria"]
["BFA","Burkina Faso"]
["BDI","Burundi"]
["CPV","Cabo Verde"]
["KHM","Cambodia"]
["CMR","Cameroon"]
["CAN","Canada"]
["CYM","Cayman Islands (the)"]
["CAF","Central African Republic (the)"]
["TCD","Chad"]
["CHL","Chile"]
["CHN","China"]
["CXR","Christmas Island"]
["CCK","Cocos (Keeling) Islands (the)"]
["COL","Colombia"]
["COM","Comoros (the)"]
["COD","Congo (the Democratic Republic of the)"]
["COG","Congo (the)"]
["COK","Cook Islands (the)"]
["CRI","Costa Rica"]
["CIV","Côte d'Ivoire"]
["HRV","Croatia"]
["CUB","Cuba"]
["CUW","Curaçao"]
["CYP","Cyprus"]
["CZE","Czech Republic"]
["DNK","Denmark"]
["DJI","Djibouti"]
["DMA","Dominica"]
["DOM","Dominican Republic (the)"]
["ECU","Ecuador"]
["EGY","Egypt"]
["SLV","El Salvador"]
["GNQ","Equatorial Guinea"]
["ERI","Eritrea"]
["EST","Estonia"]
["ETH","Ethiopia"]
["FLK","Falkland Islands (the) [Malvinas]"]
["FRO","Faroe Islands (the)"]
["FJI","Fiji"]
["FIN","Finland"]
["FRA","France"]
["GUF","French Guiana"]
["PYF","French Polynesia"]
["ATF","French Southern Territories (the)"]
["GAB","Gabon"]
["GMB","Gambia (the)"]
["GEO","Georgia"]
["DEU","Germany"]
["GHA","Ghana"]
["GIB","Gibraltar"]
["GRC","Greece"]
["GRL","Greenland"]
["GRD","Grenada"]
["GLP","Guadeloupe"]
["GUM","Guam"]
["GTM","Guatemala"]
["GGY","Guernsey"]
["GIN","Guinea"]
["GNB","Guinea-Bissau"]
["GUY","Guyana"]
["HTI","Haiti"]
["HMD","Heard Island and McDonald Islands"]
["HND","Honduras"]
["HKG","Hong Kong"]
["HUN","Hungary"]
["ISL","Iceland"]
["IND","India"]
["IDN","Indonesia"]
["IRN","Iran (Islamic Republic of)"]
["IRQ","Iraq"]
["IRL","Ireland"]
["IMN","Isle of Man"]
["ISR","Israel"]
["ITA","Italy"]
["JAM","Jamaica"]
["JPN","Japan"]
["JEY","Jersey"]
["JOR","Jordan"]
["KAZ","Kazakhstan"]
["KEN","Kenya"]
["KIR","Kiribati"]
["PRK","Korea (the Democratic People's Republic of)"]
["KOR","Korea (the Republic of)"]
["XKX","Kosovo (the Republic of)"]
["KWT","Kuwait"]
["KGZ","Kyrgyzstan"]
["LAO","Lao People's Democratic Republic (the)"]
["LVA","Latvia"]
["LBN","Lebanon"]
["LSO","Lesotho"]
["LBR","Liberia"]
["LBY","Libya"]
["LIE","Liechtenstein"]
["LTU","Lithuania"]
["LUX","Luxembourg"]
["MAC","Macao"]
["MKD","Macedonia (the former Yugoslav Republic of)"]
["MDG","Madagascar"]
["MWI","Malawi"]
["MYS","Malaysia"]
["MDV","Maldives"]
["MLI","Mali"]
["MLT","Malta"]
["MHL","Marshall Islands (the)"]
["MTQ","Martinique"]
["MRT","Mauritania"]
["MUS","Mauritius"]
["MYT","Mayotte"]
["MEX","Mexico"]
["FSM","Micronesia (Federated States of)"]
["MDA","Moldova (the Republic of)"]
["MCO","Monaco"]
["MNG","Mongolia"]
["MNE","Montenegro"]
["MSR","Montserrat"]
["MAR","Morocco"]
["MOZ","Mozambique"]
["MMR","Myanmar"]
["NAM","Namibia"]
["NRU","Nauru"]
["NPL","Nepal"]
["NLD","Netherlands (the)"]
["NCL","New Caledonia"]
["NZL","New Zealand"]
["NIC","Nicaragua"]
["NER","Niger (the)"]
["NGA","Nigeria"]
["NIU","Niue"]
["NFK","Norfolk Island"]
["MNP","Northern Mariana Islands (the)"]
["NOR","Norway"]
["OMN","Oman"]
["PAK","Pakistan"]
["PLW","Palau"]
["PSE","Palestine, State of"]
["PAN","Panama"]
["PNG","Papua New Guinea"]
["PRY","Paraguay"]
["PER","Peru"]
["PHL","Philippines (the)"]
["PCN","Pitcairn Islands"]
["POL","Poland"]
["PRT","Portugal"]
["PRI","Puerto Rico"]
["QAT","Qatar"]
["REU","Réunion"]
["ROU","Romania"]
["RUS","Russian Federation (the)"]
["RWA","Rwanda"]
["BLM","Saint Barthélemy"]
["SHN","Saint Helena, Ascension and Tristan da Cunha"]
["KNA","Saint Kitts and Nevis"]
["LCA","Saint Lucia"]
["MAF","Saint Martin (French part)"]
["SPM","Saint Pierre and Miquelon"]
["VCT","Saint Vincent and the Grenadines"]
["WSM","Samoa"]
["SMR","San Marino"]
["STP","Sao Tome and Principe"]
["SAU","Saudi Arabia"]
["SEN","Senegal"]
["SRB","Serbia"]
["SYC","Seychelles"]
["SLE","Sierra Leone"]
["SGP","Singapore"]
["SXM","Sint Maarten (Dutch part)"]
["SVK","Slovakia"]
["SVN","Slovenia"]
["SLB","Solomon Islands"]
["SOM","Somalia"]
["ZAF","South Africa"]
["SGS","South Georgia and the South Sandwich Islands"]
["SSD","South Sudan"]
["ESP","Spain"]
["LKA","Sri Lanka"]
["SDN","Sudan (the)"]
["SUR","Suriname"]
["SJM","Svalbard and Jan Mayen"]
["SWZ","Swaziland"]
["SWE","Sweden"]
["CHE","Switzerland"]
["SYR","Syrian Arab Republic"]
["TWN","Taiwan (Province of China)"]
["TJK","Tajikistan"]
["TZA","Tanzania, United Republic of"]
["THA","Thailand"]
["TLS","Timor-Leste"]
["TGO","Togo"]
["TKL","Tokelau"]
["TON","Tonga"]
["TTO","Trinidad and Tobago"]
["TUN","Tunisia"]
["TUR","Turkey"]
["TKM","Turkmenistan"]
["TCA","Turks and Caicos Islands (the)"]
["TUV","Tuvalu"]
["UGA","Uganda"]
["UKR","Ukraine"]
["ARE","United Arab Emirates (the)"]
["GBR","United Kingdom of Great Britain and Northern Ireland (the)"]
["UMI","United States Minor Outlying Islands (the)"]
["USA","United States of America (the)"]
["URY","Uruguay"]
["UZB","Uzbekistan"]
["VUT","Vanuatu"]
["VAT","Vatican City State (Holy See)"]
["VEN","Venezuela (Bolivarian Republic of)"]
["VNM","Vietnam"]
["VGB","Virgin Islands (British)"]
["VIR","Virgin Islands (U.S.)"]
["WLF","Wallis and Futuna"]
["ESH","Western Sahara"]
["YEM","Yemen"]
["ZMB","Zambia"]
["ZWE","Zimbabwe"]

{"sheet":"Nationalties","index":2,"n_rows":280,"n_cols":2,"rows_kept":280}
["1539","Afghan"]
["1540","Alandic"]
["1541","Albanian"]
["1542","Algerian"]
["1543","American"]
["1544","American Samoan"]
["1545","Andorran"]
["1546","Angolan"]
["1547","Anguillan"]
["1548","Antarctic"]
["1549","Antarctican"]
["1550","Antiguan"]
["1943","Antiguan and Barbudan"]
["1551","Argentinian"]
["1552","Armenian"]
["1553","Aruban"]
["1554","Australian"]
["1555","Austrian"]
["1556","Azerbaijani"]
["1557","Bahamian"]
["1558","Bahraini"]
["1559","Bangladeshi"]
["1560","Barbadian"]
["1561","Barbudian"]
["1562","Barthelemois"]
["1563","Batswana"]
["1564","Belarusian"]
["1565","Belgian"]
["1566","Belizean"]
["1567","Beninese"]
["1897","Bermudian"]
["1568","Bhutanese"]
["1569","Bissau-Guinean"]
["1570","Bolivian"]
["1571","Bosnian"]
["1572","Brazilian"]
["1573","British"]
["1574","British Crown Dependent"]
["1935","British National (Overseas)"]
["1575","British Overseas Territory Citizen - Anguilla"]
["1576","British Overseas Territory Citizen - Bermuda"]
["1577","British Overseas Territory Citizen - BVI"]
["1578","British Overseas Territory Citizen - Cayman Islands"]
["1579","British Overseas Territory Citizen - Falkland Islands"]
["1580","British Overseas Territory Citizen - Monserrat"]
["1902","British Overseas Territory Citizen - Saint Helena"]
["1936","British Overseas Territory Citizen - Turks & Caicos"]
["1581","Bruneian"]
["1582","Bulgarian"]
["1584","Burkinabe"]
["1583","Burkinabé"]
["1585","Burkinabè"]
["1898","Burmese"]
["1586","Burundian"]
["1587","Cabo Verdian"]
["1588","Cambodian"]
["1589","Cameroonian"]
["1590","Canadian"]
["1591","Catracho"]
["1903","Caymanian"]
["1592","Central African"]
["1593","Chadian"]
["1904","Channel Islander"]
["1594","Chilean"]
["1595","Chinese"]
["1596","Christmas Islander"]
["1597","Cocos Islandian"]
["1598","Cocossian"]
["1599","Colombian"]
["1600","Comorian"]
["1601","Congolese"]
["1602","Congonese"]
["1603","Cook Islander"]
["1604","Costa Rican"]
["1605","Croatian"]
["1606","Cuban"]
["1951","Curacaoan"]
["1607","Cypriot"]
["1608","Czech"]
["1609","Dane"]
["1610","Danish"]
["1611","Djboutian"]
["1612","Dominican"]
["1896","Dubai (United Arab Emirates)"]
["1613","Dutch"]
["1614","East Timorese"]
["1615","Ecuadorian"]
["1616","Egyptian"]
["1617","Emirati"]
["1618","Equatoguinean"]
["1619","Equatorial Guinean"]
["1620","Eritrean"]
["1621","Estonian"]
["1622","Ethiopian"]
["1905","Falkland Islander"]
["1623","Faroese"]
["1624","Fijian"]
["1625","Filipino"]
["1626","Finn"]
["1627","Finnish"]
["1628","French"]
["1629","French Guianese"]
["1630","French Overseas Citizen"]
["1631","French Polynesian"]
["1632","Futanan"]
["1633","Gabonaise"]
["1634","Gabonese"]
["1635","Gambian"]
["1636","Georgian"]
["1637","German"]
["1638","Ghanaian"]
["1639","Gibraltarian"]
["1640","Greek"]
["1641","Greenlander"]
["1642","Greenlandic"]
["1643","Grenadian"]
["1644","Guadeloupean"]
["1645","Guamanian"]
["1646","Guatemalan"]
["1647","Guinean"]
["1648","Guyanese"]
["1649","Haitian"]
["1650","Herzegovinian"]
["1651","Honduran"]
["1652","Hong Konger"]
["1653","Hong Kongese"]
["1654","Hungarian"]
["1655","Icelander"]
["1906","Icelandic"]
["1656","I-Kiribati"]
["1657","Indian"]
["1658","Indonesian"]
["1659","Iranian"]
["1660","Iraqi"]
["1661","Irish"]
["1662","Iroivian"]
["1663","Israeli"]
["1664","Italian"]
["1665","Ivorian"]
["1666","Jamaican"]
["1667","Japanese"]
["1668","Jordanian"]
["1669","Kazakh"]
["1670","Kazakhstani"]
["1671","Kenyan"]
["1672","Kittitian"]
["1673","Kosovan"]
["1674","Kosovar"]
["1675","Kuwaiti"]
["1907","Kyrgyzstani"]
["1676","Laotian"]
["1677","Latvian"]
["1678","Lebanese"]
["1679","Liberian"]
["1680","Libyan"]
["1681","Liechtensteiner"]
["1682","Lithuanian"]
["1683","Llanito"]
["1684","Luxembourger"]
["1941","Macanese"]
["1685","Macedonian"]
["1686","Madagascan"]
["1953","Malagasy"]
["1687","Malawian"]
["1688","Malaysian"]
["1689","Maldivian"]
["1690","Malian"]
["1691","Maltese"]
["1692","Manx"]
["1899","Marshallese"]
["1908","Marshellese"]
["1693","Mauritanian"]
["1694","Mauritian"]
["1695","Mexican"]
["1909","Micronesian"]
["1696","Moldovan"]
["1697","Monacan"]
["1698","Monegasque"]
["1699","Mongolian"]
["1700","Montenegrin"]
["1701","Moroccan"]
["1911","Mosotho"]
["1910","Motswana"]
["1702","Mozambican"]
["1929","Myanmar"]
["1703","Namibian"]
["1912","Nauruan"]
["1704","Nepalese"]
["1913","Nepali"]
["1705","Nevisian"]
["1706","New Zealander"]
["1707","Nicaraguan"]
["1708","Nigerian"]
["1709","Nigerien"]
["1914","Niuean"]
["1710","Ni-Vanuatu"]
["1711","Norfolk Islander"]
["1712","North Korean"]
["1713","Norwegian"]
["1714","Omani"]
["1715","Pakistani"]
["1915","Palauan"]
["1918","Palauan"]
["1894","Palestinian"]
["1716","Panamanian"]
["1916","Papua New Guinean"]
["1717","Paraguayan"]
["1718","Perisian"]
["1719","Peruvian"]
["1917","Pitcairn Islander"]
["1720","Polak"]
["1721","Pole"]
["1722","Polish"]
["1723","Portuguese"]
["1724","Puerto Rican"]
["1725","Qatari"]
["1726","Romanian"]
["1727","Russian"]
["1728","Rwandan"]
["1729","Sahrawis"]
["1730","Saint Lucian"]
["1731","Salvadoran"]
["1732","Salvadorean"]
["1733","Samoan"]
["1734","Sao Tomean"]
["1735","Saudi"]
["1736","Senegalese"]
["1737","Serbian"]
["1738","Seychellois"]
["1739","Sierra Leonean"]
["1740","Singaporean"]
["1741","Slovak"]
["1940","Slovakian"]
["1742","Slovenian"]
["1743","Solomon Islander"]
["1744","Somali"]
["1745","South African"]
["1746","South Georgian"]
["1747","South Korean"]
["1748","South Sudanese"]
["1749","Spaniard"]
["1937","Spanish"]
["1750","Sri Lankan"]
["1751","Sudanese"]
["1752","Summarinese"]
["1753","Surinamese"]
["1754","Swazi"]
["1755","Swede"]
["1900","Swedish"]
["1919","Swedish"]
["1756","Swiss"]
["1757","Syrian"]
["1758","Tadzhik"]
["1759","Taiwanese"]
["1920","Tajikstani"]
["1760","Tanzanian"]
["1761","Thai"]
["1762","Tico"]
["1763","Togolese"]
["1764","Tokelauan"]
["1765","Tongan"]
["1766","Trinidadian"]
["1767","Tunisian"]
["1768","Turk"]
["1921","Turkish"]
["1769","Turkmen"]
["1770","Turks and Caicos Islander"]
["1771","Tuvaluan"]
["1772","Ugandan"]
["1773","Ukrainian"]
["1774","Uruguayan"]
["1775","Uzbek"]
["1939","Vanuatu"]
["1776","Venezuelan"]
["1777","Vietnamese"]
["1778","Vincentian"]
["1779","Wallisian"]
["1780","Yemeni"]
["1781","Zambian"]
["1782","Zimbabwean"]